Cogmind - Beta 10.2 @@@ ROGUE MODE // 2021.12.15 @ 15:15:32 Player: Azken Zutik Result: Establishing 0b11! Performance ------------- Evolutions (9) 4500 Regions Visited (33) 6600 Robots Destroyed (519) 2595 Value Destroyed (32318) 32318 Prototype IDs (61) 1220 Alien Tech Used (0) 0 Bonus (39698) 39698 TOTAL SCORE: 86931 Bonus ------- High Alert Combat Kills 7514 Follower Combat Kills 2537 Entered Garrisons 1800 Used RIF Installer 4500 Aligned with FarCom 300 Destroyed MAIN.C Guards 500 Met MAIN.C 5000 Destroyed MAIN.C Shell 5000 Destroyed MAIN.C 10000 Win 3000 Friendly Fire -453 Cogmind --------- Core Integrity 641/1600 Matter 300/300 Energy 1178/1200 System Corruption 0% Temperature Cool (11) Movement Treading (151) Location 0b11 Command Parts ------- > --- POWER (2) -------- Vortex Chain Reactor > --- PROPULSION (6) --- Experimental Biometal Heavy Treads Enhanced Armored Heavy Treads High-density Centrium Heavy Treads > --- UTILITY (13) ----- Advanced Coolant Injector Energy Well Experimental Targeting Computer Experimental Target Analyzer Precision Matter Filter Experimental Weapon Cycler Advanced Phase Shifter Improved Weapon Shielding Heavy Armor Plating Centrium Medium Armor Plating AEGIS Remote Shield Advanced Dynamic Insulation System > --- WEAPON (4) ------- KE Penetrator Railgun Multirail Point Singularity Launcher > --- INVENTORY (4) ---- Advanced Force Field Multirail Advanced Remote Datajack Lance Peak State ------------ > --- POWER ------------ Vortex Chain Reactor > --- PROPULSION ------- Experimental Biometal Heavy Treads Enhanced Armored Heavy Treads High-density Centrium Heavy Treads > --- UTILITY ---------- Advanced Coolant Injector Energy Well Experimental Targeting Computer Experimental Target Analyzer Precision Matter Filter Experimental Weapon Cycler Advanced Phase Shifter Improved Weapon Shielding Heavy Armor Plating Centrium Medium Armor Plating AEGIS Remote Shield Advanced Dynamic Insulation System > --- WEAPON ----------- KE Penetrator Railgun Multirail Multirail > --- INVENTORY -------- Advanced Force Field Point Singularity Launcher Advanced Remote Datajack Lance [Rating: 211] Favorites ----------- Power Antimatter Reactor Engine Improved Deuterium Engine Power Core Light Nuclear Core Reactor Antimatter Reactor Propulsion Heavy Treads Treads Heavy Treads Leg Aluminum Leg Wheel Armored Wheel Hover Unit Antigrav System Flight Unit Cesium-ion Thruster Utility High-capacity Storage Unit Device Advanced Coolant Injector Storage High-capacity Storage Unit Processor Improved Targeting Computer Hackware Relay Coupler [NC] Protection Heavy Armor Plating Weapon KE Penetrator Energy Gun Tesla Rifle Energy Cannon Compact HERF Cannon Ballistic Gun KE Penetrator Ballistic Cannon Hypervelocity Mass Driver Launcher Heavy Shock Bomb Launcher Special Weapon Remote Datajack Impact Weapon Thunder Hammer Slashing Weapon Great Axe Piercing Weapon Heavy Pick Special Melee Weapon Improved Datajack Build | -11 -10 -10 -9 -9 -9 -8 -8 -8 -8 -7 -7 -7 -7 -6 -6 -6 -6 -6 -6 -5 -5 -5 -5 -4 -4 -4 -4 -3 -3 -2 -2 -1 -1 ------- Run | Scr Mat Min Mat Min Exi Min Mat Sto Gar Fac Gar Fac Gar Fac Was Fac Gar Fac Gar Fac Was Fac Gar Fac Was Fac Gar Res Gar Res Gar Acc Com Slots Evolved 18 | . . . 2 . . . 2 . . 2 . . . 2 . . . . . 2 . . . 2 . . . 2 . 2 . 2 . Power 1 | . . . . . . . . . . . . . . . . . . . . . . . . 1 . . . . . . . . . Propulsion 4 | . . . . . . . . . . . . . . . . . . . . 2 . . . . . . . . . 2 . . . Utility 11 | . . . 2 . . . . . . 2 . . . 2 . . . . . . . . . 1 . . . 2 . . . 2 . Weapon 2 | . . . . . . . 2 . . . . . . . . . . . . . . . . . . . . . . . . . . Parts Attached 755 | 7 3 1 18 . 6 2 13 25 15 9 20 12 38 30 13 6 9 9 39 6 7 4 31 7 10 7 35 4 50 25 19 40 235 Power 47 | 1 . . 3 . 1 . 2 2 . . 1 . 2 2 2 . . . 1 . . . . 1 1 . 2 . 2 3 1 1 19 Engine 13 | 1 . . 3 . . . 2 2 . . . . 1 2 . . . . . . . . . . . . . . . . . . 2 Core 5 | . . . . . 1 . . . . . 1 . 1 . . . . . . . . . . . . . . . . . . . 2 Reactor 29 | . . . . . . . . . . . . . . . 2 . . . 1 . . . . 1 1 . 2 . 2 3 1 1 15 Propulsion 101 | 2 . . 3 . 1 1 3 4 4 1 1 2 2 3 1 . . . 2 1 . . . . 2 . . . 4 5 . 6 53 Treads 81 | 2 . . 3 . . 1 3 4 2 1 1 2 2 3 1 . . . 1 1 . . . . 2 . . . 4 5 . 6 37 Leg 7 | . . . . . 1 . . . . . . . . . . . . . 1 . . . . . . . . . . . . . 5 Wheel 4 | . . . . . . . . . 2 . . . . . . . . . . . . . . . . . . . . . . . 2 Hover 5 | . . . . . . . . . . . . . . . . . . . . . . . . . . . . . . . . . 5 Flight 4 | . . . . . . . . . . . . . . . . . . . . . . . . . . . . . . . . . 4 Utility 302 | 2 3 . 3 . 3 . 1 3 9 3 10 3 9 6 4 2 5 2 20 2 5 3 17 1 3 5 18 4 26 5 14 10 101 Device 104 | . . . . . . . . . 1 . 1 . 1 . 1 1 2 1 3 1 1 2 3 1 . 2 7 . 12 . 2 2 60 Storage 75 | 2 3 . . . 3 . . . 4 . 5 . 6 . . 1 2 . 10 . 2 . 8 . 1 1 6 . 6 . 8 . 7 Processor 17 | . . . 1 . . . 1 . . . . . . 1 . . . . . . . . . . . . . . 1 . . . 13 Hackware 29 | . . . . . . . . . . 1 . 2 . 2 . . . 1 . 1 1 . 1 . 1 1 . 3 . 5 . 6 4 Protection 77 | . . . 2 . . . . 3 4 2 4 1 2 3 3 . 1 . 7 . 1 1 5 . 1 1 5 1 7 . 4 2 17 Artifact . | . . . . . . . . . . . . . . . . . . . . . . . . . . . . . . . . . . Weapon 305 | 2 . 1 9 . 1 1 7 16 2 5 8 7 25 19 6 4 4 7 16 3 2 1 14 5 4 2 15 . 18 12 4 23 62 Energy Gun 10 | . . . 2 . . . . . . . . . 5 1 . . . . . . . . . . . . . . . . . . 2 Energy Cannon 2 | . . . . . . . . . . . . . . . . . . . . . . . . . . . . . . . . . 2 Ballistic Gun 158 | 2 . 1 7 . 1 . 7 8 1 2 5 2 12 9 4 3 3 3 10 . 1 . 9 3 1 . 7 . 13 8 3 10 23 Ballistic Cannon 8 | . . . . . . . . . . . . . . . . . . . . . . . . . . . . . . . . . 8 Launcher 43 | . . . . . . 1 . 3 . . 3 2 3 2 . . . . 3 1 . . 4 . . . 4 . 2 1 1 . 13 Special Weapon 34 | . . . . . . . . . . . . . 1 4 1 1 . 1 . 1 1 . . 1 2 1 3 . 2 1 . 7 7 Impact Weapon 1 | . . . . . . . . . . . . . . . . . . . . . . . . 1 . . . . . . . . . Slashing Weapon 34 | . . . . . . . . 5 1 1 . . 4 1 . . . 1 3 1 . 1 1 . 1 1 1 . 1 2 . 6 3 Piercing Weapon 9 | . . . . . . . . . . . . . . 2 1 . 1 2 . . . . . . . . . . . . . . 3 Special Melee Weapon 6 | . . . . . . . . . . 2 . 3 . . . . . . . . . . . . . . . . . . . . 1 Unidentified Prototypes 36 | . . . . . . . . 2 . . . . . . . . . . . . . . . 1 . . . . . . . . 33 Parts Lost 95 | . . . 9 . . . 1 5 1 3 1 7 5 12 . . . . 1 . . . 2 . . . 4 . 7 7 . 1 29 Power 11 | . . . 1 . . . . 1 . 1 . 1 . 2 . . . . . . . . . . . . . . 1 1 . . 3 Propulsion 17 | . . . 2 . . . 1 . . 1 1 . . 2 . . . . 1 . . . . . . . . . . 3 . . 6 Utility 29 | . . . 2 . . . . 2 . . . 1 . 1 . . . . . . . . 2 . . . 4 . 6 . . 1 10 Weapon 38 | . . . 4 . . . . 2 1 1 . 5 5 7 . . . . . . . . . . . . . . . 3 . . 10 Highest Loss Streak 21 | . . . 7 . . . 1 2 1 3 1 6 2 4 . . . . 1 . . . 1 . . . 2 . 4 4 . 1 21 Average Slot Usage (%) 86 | . 100 100 92 66 83 100 95 98 96 96 90 92 89 88 82 93 93 93 87 88 76 87 83 89 78 89 83 84 88 87 82 89 77 Engine 1 | . 14 14 10 11 3 . 8 8 9 4 . . 5 4 1 . . . . . . . . . . . . . . . . . . Reactor 5 | . . . . . . . . . . . . . . . 4 6 6 6 5 5 5 5 5 10 10 10 10 9 8 7 8 8 6 Treads 12 | . 28 28 19 11 11 21 13 18 17 14 13 15 15 12 7 6 6 6 5 11 11 11 11 10 9 10 10 9 12 14 13 14 12 Device 9 | . . . . . . . . . 4 . 3 . 6 2 . 6 8 3 8 4 . 10 10 10 . 6 13 9 17 8 11 10 19 Storage 20 | . 28 28 22 22 25 33 27 27 17 30 12 38 27 31 26 29 33 40 27 41 25 29 20 31 29 31 16 28 15 26 12 24 5 Processor 3 | . . . 10 11 11 11 9 1 . . . . . 3 1 . . . . . . . . . . . . . 1 4 4 4 8 Hackware 1 | . . . . . . . . . . 6 6 2 1 . 6 6 3 2 . . 3 . . . 1 3 . 1 1 6 8 9 . Protection 8 | . . . 7 . . . . 7 13 7 21 4 3 6 11 9 5 6 11 . 4 5 11 5 5 5 10 6 10 1 5 2 10 Ballistic Gun 16 | . 28 28 19 . 6 . 35 31 19 24 20 19 13 18 3 25 21 22 21 11 16 12 15 16 5 10 14 9 17 12 16 12 11 Launcher 1 | . . . . . . 11 . 2 9 . 4 1 2 . . . . . . 2 . . 3 . . . 3 . . . . . 1 Special Weapon 1 | . . . . . . . . . . . . . . . 11 . . . . 3 4 5 . 1 9 5 1 4 . 1 . 1 . Slashing Weapon 1 | . . . . . . . . 1 4 1 . . 4 1 . . . . 1 3 . 3 1 2 4 5 . 4 . 2 . 1 . Naked Turns 4 | . . . . . . . . . . . . . . . . . . . . . . . . . . . . . . . . . 4 Heaviest Build 305 | 14 38 38 46 40 105 108 111 121 147 153 162 166 175 195 201 200 222 207 224 220 236 224 251 264 286 256 274 265 265 268 270 284 305 Greatest Support 260 | 40 40 40 40 20 20 40 40 40 40 42 42 42 40 40 70 70 70 70 70 140 140 140 140 140 140 140 140 140 140 220 215 215 260 Greatest Overweight (x) 12 | . . . 2 1 5 5 5 3 12 6 3 4 4 9 4 2 3 2 8 1 1 1 1 1 2 1 1 1 2 1 1 1 3 Average Overweight (x) 1 | . . . 1 1 2 2 3 2 1 3 1 3 3 3 2 2 2 2 1 1 1 1 . 1 1 1 . 1 . 1 . 1 . Largest Inventory Capacity 60 | 8 16 16 16 16 28 28 28 28 36 36 42 42 42 42 36 44 50 48 60 54 54 44 52 52 52 52 52 52 52 52 52 52 52 Average Capacity 26 | 6 14 16 16 16 19 28 28 28 19 36 17 42 31 40 36 39 44 48 30 54 38 44 24 52 49 52 25 52 27 52 22 52 7 Most Carried 54 | 3 16 16 16 15 18 18 24 28 36 35 42 42 42 42 36 37 48 48 54 54 51 43 52 52 52 52 52 52 52 52 52 52 51 Average Carried 24 | 1 10 15 15 15 15 17 19 26 14 34 15 41 28 38 35 36 42 47 29 52 37 41 21 51 47 51 24 51 25 49 20 51 7 Final Capacity 54 | 8 16 16 16 16 28 28 28 28 36 36 42 42 42 36 36 44 48 48 54 54 44 44 52 52 52 52 52 52 52 52 52 52 44 Final Carried 54 | 3 16 16 15 15 17 18 23 26 36 34 42 40 42 34 36 37 48 48 54 54 41 43 52 52 52 52 52 50 52 44 52 51 28 Class Distribution -------------------- 19% | Scavenger-Mutant 17% | Scavenger-Tank 16% | Botlord-Mutant 11% | Bothacker-Mutant 7% | Mutant 6% | Hauler-Skirmisher 6% | Hauler-Mutant 4% | Scavenger-Gunner 3% | Bothacker-Skirmisher Dominant Class ---------------- Mutant | -10/Materials Mutant | -10/Mines Scavenger-Mutant | -9/Materials Mutant | -9/Mines Mutant | -9/Exiles Hauler-Mutant | -8/Mines Hauler-Skirmisher | -8/Materials Hauler-Skirmisher | -8/Storage Scavenger-Mutant | -8/Garrison Hauler-Skirmisher | -7/Factory Mutant | -7/Garrison Hauler-Mutant | -7/Factory Bothacker-Mutant | -7/Garrison Bothacker-Skirmisher | -6/Factory Bothacker-Mutant | -6/Waste Hauler-Mutant | -6/Factory Botlord-Mutant | -6/Garrison Bothacker-Mutant | -6/Factory Botlord-Mutant | -6/Garrison Botlord-Mutant | -5/Factory Bothacker-Mutant | -5/Waste Bothacker-Mutant | -5/Factory Scavenger-Mutant | -5/Garrison Botlord-Tank | -4/Factory Botlord-Mutant | -4/Waste Botlord-Mutant | -4/Factory Scavenger-Mutant | -4/Garrison Botlord-Mutant | -3/Research Scavenger-Tank | -3/Garrison Botlord-Mutant | -2/Research Scavenger-Tank | -2/Garrison Botlord-Mutant | -1/Access Scavenger-Tank | -1/Command Resources | -11 -10 -10 -9 -9 -9 -8 -8 -8 -8 -7 -7 -7 -7 -6 -6 -6 -6 -6 -6 -5 -5 -5 -5 -4 -4 -4 -4 -3 -3 -2 -2 -1 -1 ----------- Run | Scr Mat Min Mat Min Exi Min Mat Sto Gar Fac Gar Fac Gar Fac Was Fac Gar Fac Gar Fac Was Fac Gar Fac Was Fac Gar Res Gar Res Gar Acc Com Matter Collected 35647 | 356 349 111 515 . . 132 625 1155 484 137 687 424 1336 1407 640 114 642 180 2930 66 385 . 1760 509 261 109 2528 105 2685 1228 2310 1705 9772 Remotely 1539 | . . . . . . . . . . . . . . . . . . . . . . . . . . . . . . . . . 1539 Salvage Created 33073 | 105 149 . 966 . . 294 1004 2405 1098 163 586 656 763 1852 1927 . 1162 256 1936 . 1017 . 1479 729 1978 109 3115 . 2450 2057 1047 1903 1867 Parts 1348 | 6 16 . 59 . . 15 49 118 45 6 34 44 38 86 55 . 37 7 54 . 15 . 45 28 55 7 120 . 106 94 37 85 87 Haulers Intercepted 7 | . . . 1 . . . 1 3 . . . . . . . . . . . . . . . 1 . . . . . 1 . . . Recyclers Shooed 6 | . . . 1 . . 1 . . . . . 1 . 1 . . . . . . . . . . . . . . . 1 . . 1 Parts Field Recycled . | . . . . . . . . . . . . . . . . . . . . . . . . . . . . . . . . . . Retrieved Matter . | . . . . . . . . . . . . . . . . . . . . . . . . . . . . . . . . . . Parts Self-Destructed . | . . . . . . . . . . . . . . . . . . . . . . . . . . . . . . . . . . Prevented . | . . . . . . . . . . . . . . . . . . . . . . . . . . . . . . . . . . Kills | -11 -10 -10 -9 -9 -9 -8 -8 -8 -8 -7 -7 -7 -7 -6 -6 -6 -6 -6 -6 -5 -5 -5 -5 -4 -4 -4 -4 -3 -3 -2 -2 -1 -1 ------- Run | Scr Mat Min Mat Min Exi Min Mat Sto Gar Fac Gar Fac Gar Fac Was Fac Gar Fac Gar Fac Was Fac Gar Fac Was Fac Gar Res Gar Res Gar Acc Com Combat Hostiles Destroyed 471 | . 5 . 27 . . 9 20 46 22 3 25 10 18 30 6 . 5 4 34 . 4 . 29 7 6 4 37 . 39 23 17 22 19 Melee 9 | . . . . . . . . . . . . . . . 6 . . . . . . . . . 2 . . . . . . . 1 Guns 297 | . 5 . 27 . . . 20 30 . 3 3 3 10 24 . . 4 4 24 . 4 . 3 7 2 4 21 . 30 20 12 22 15 Cannons 2 | . . . . . . . . . . . . . . . . . . . . . . . . . 2 . . . . . . . . AOE 137 | . . . . . . 9 . 13 19 . 22 7 8 6 . . . . 10 . . . 16 . . . 8 . 9 3 5 . 2 Classes Destroyed 19 | 3 2 . 4 . . 2 . 2 1 . 1 . . . 1 . 1 . . . . . . . . . . . 1 . . . 1 Worker 11 | 1 2 . 1 . . . 1 2 . . . 2 . 1 . . . . . . . . . . . . . . . 1 . . . Builder 11 | . . . . . . 2 . 1 . . . 5 . 1 . . . . . . . . . . . . . . . 2 . . . Tunneler 4 | 1 . . . . . 1 . . . . . . . 1 . . . . . . . . . . . . . . . . . 1 . Hauler 7 | . . . 1 . . . 1 3 . . . . . . . . . . . . . . . 1 . . . . . 1 . . . Recycler 9 | 1 . . . . . 1 . 3 . . . . . 2 . . . . . . . . . 1 . . . . . . . 1 . Operator 2 | . . . 1 . . . . . . . . . . . . . . 1 . . . . . . . . . . . . . . . Watcher 3 | . . . 1 . . . . . . . . . . . . . . . 1 . . . . . . . . . 1 . . . . Swarmer 85 | . 3 . 13 . . 3 3 8 12 . 8 . 3 . . . . . 7 . . . 8 . . 4 3 . 7 . . 1 2 Saboteur 1 | . . . . . . . . . . . . . . . . . . . . . . . . . . . . . . . . . 1 Grunt 202 | . 2 . 8 . . 5 13 21 7 2 14 6 8 14 . . . 2 19 . . . 12 2 . . 24 . 19 11 7 6 . Brawler 10 | . . . . . . 1 . 1 2 . . 1 . 2 . . . . . . . . . . . . 1 . . . 2 . . Duelist 9 | . . . . . . . . 1 . . . . . 3 . . . 1 2 . . . . . . . . . 1 1 . . . Protector 6 | . . . . . . . . 2 . . . . . 2 . . . . . . . . . . . . . . 1 1 . . . Sentry 74 | . . . 6 . . . 4 13 . 1 2 1 7 2 . . 3 . 3 . . . 8 1 . . 6 . 5 2 1 7 2 Demolisher 1 | . . . . . . . . . . . . . . . . . . . . . . . . . . . . . 1 . . . . Hunter 27 | . . . . . . . . . 1 . . 1 . 2 . . 2 . 2 . . . . 4 . . 2 . 2 4 4 2 1 Programmer 29 | . . . . . . . . . . . 1 1 . 5 . . . 1 . . . . . . . . . . 2 4 2 6 7 Behemoth 6 | . . . . . . . . . . . . . . . . . 1 . 1 . . . 1 . . . 1 . 1 . 1 . . Compactor 16 | . . . . . . . . . . . . . . . 6 . . . . . 4 . . . 6 . . . . . . . . M Guard 2 | . . . . . . . . . . . . . . . . . . . . . . . . . . . . . . . . . 2 Combat Programmer 2 | . . . . . . . . . . . . . . . . . . . . . . . . . . . . . . . . . 2 Best Kill Streak 14 | 3 5 . 6 . . 6 9 12 7 2 14 9 6 7 1 . 3 3 8 . 2 . 5 5 1 4 4 . 9 6 4 5 2 Combat Bots Only 14 | . 3 . 6 . . 3 9 12 7 2 14 6 6 5 1 . 3 2 8 . 2 . 5 4 1 4 4 . 9 4 4 4 2 Max Kills in Single Turn 4 | 1 1 . 2 . . 3 2 4 3 1 3 3 2 3 1 . 2 1 3 . 1 . 2 1 1 1 2 . 2 4 1 2 1 Gunslinging 1 | . . . 1 . . . 1 1 . . . . . . . . 1 . 1 . . . . . . . 1 . 1 . . 1 . Exploded 3 | . . . . . . 3 . 3 3 . 3 2 2 2 . . . . 3 . . . 2 . . . 1 . 2 3 1 . 1 Melee 1 | . . . . . . . . . . . . . . . 1 . . . . . . . . . 1 . . . . . . . 1 Uniques/NPCs Destroyed 2 | . . . . . . . . . . . . . . . . . . . . . . . . . . . . . . . . . 2 MAIN.C Shell (-1/Command) MAIN.C (-1/Command) Combat | -11 -10 -10 -9 -9 -9 -8 -8 -8 -8 -7 -7 -7 -7 -6 -6 -6 -6 -6 -6 -5 -5 -5 -5 -4 -4 -4 -4 -3 -3 -2 -2 -1 -1 -------- Run | Scr Mat Min Mat Min Exi Min Mat Sto Gar Fac Gar Fac Gar Fac Was Fac Gar Fac Gar Fac Was Fac Gar Fac Was Fac Gar Res Gar Res Gar Acc Com Damage Taken 37241 | . 164 7 1558 . . 182 718 2024 268 344 249 1487 1822 3635 . 35 831 207 814 123 . . 816 753 . 56 1440 128 2408 3693 519 1727 11233 Core 3034 | . 31 . 241 . . 9 133 164 8 40 6 140 118 418 . . 57 38 44 . . . 15 47 . 8 110 . 93 348 7 136 823 Absorbed by Shields 6850 | . . . . . . . . . . . . . . . . . 9 36 765 40 . . 293 497 . 59 856 132 1289 864 502 1045 463 Reduced by Siege Mode 1484 | . . . . . . . . . . . . . . . . . . . 16 . . . 37 78 . . 128 . 154 484 51 75 461 Core Remaining (%) 68 | 100 . 87 . . . 37 . . 44 . . . 56 . . . . . 34 . . . 98 . . . 85 . 92 . 75 . 40 Volleys Fired 1764 | 9 15 2 97 . . 14 57 85 38 12 42 23 56 73 31 2 22 14 96 6 27 4 105 30 74 10 154 7 141 75 69 81 293 Largest 4 | 2 2 2 2 . . 1 4 4 1 4 4 4 4 4 1 1 4 4 4 1 3 1 4 4 1 2 4 1 4 4 4 4 4 Hottest 197 | 40 40 40 68 . . 33 86 94 36 86 89 94 149 153 30 30 124 112 112 30 84 30 122 132 33 66 132 30 134 136 136 134 197 Shots Fired 3994 | 18 30 4 177 . . 14 228 294 37 40 63 51 122 230 33 2 61 46 267 6 67 4 124 117 74 17 292 7 374 228 171 249 547 Gun 3271 | 18 30 4 177 . . . 228 283 4 40 30 38 105 219 2 . 61 43 244 . 60 . 57 116 24 14 194 . 341 208 145 226 360 Cannon 6 | . . . . . . . . . . . . . . . . . . . . . . . . . . . . . . . . . 6 Launcher 513 | . . . . . . 14 . 11 33 . 33 13 14 7 . . . . 23 2 . . 67 . . . 69 . 26 4 26 . 171 Special 204 | . . . . . . . . . . . . . 3 4 31 2 . 3 . 4 7 4 . 1 50 3 29 7 7 16 . 23 10 Kinetic 3225 | 18 30 4 153 . . . 228 283 4 40 30 38 85 212 1 . 61 43 244 . 60 . 57 116 24 14 194 . 341 208 145 226 366 Thermal 116 | . . . . . . . . . . . . . 20 . 24 . . . . . . . . . 44 . 18 . . . . . 10 Explosive 358 | . . . . . . 14 . . . . 33 . 14 7 . . . . 23 2 . . 24 . . . 25 . 26 . 26 . 164 Electromagnetic 187 | . . . 24 . . . . 11 33 . . 13 . 7 1 . . . . . . . 43 . . . 44 . . 4 . . 7 Robot Hit Streak 80 | 4 10 1 30 . . 3 19 16 14 11 16 8 15 16 21 1 6 14 47 4 17 1 21 16 28 4 39 3 37 41 79 80 53 Robot Miss Streak 8 | 2 2 2 3 . . 4 3 4 1 1 1 2 8 2 1 1 4 1 3 . 4 1 1 2 1 2 1 1 2 2 1 1 2 Penetration Max 2 | . . . . . . . . . . . . . . 2 . . . . 1 . . . . . . . . . 1 2 . 1 1 Secondary Targets 52 | . . . 3 . . . 2 2 . 1 . . 1 6 . . 1 . 3 . 1 . . 1 . . 5 . 11 8 2 4 1 Max Gunslinging Chain 1 | . . . 1 . . . 1 1 . 1 . . 1 1 . . 1 . 1 . 1 . . 1 . . 1 . 1 1 1 1 1 Shots Hit Robots 2914 | 11 19 1 130 . . 6 169 209 18 36 28 38 95 154 89 1 62 32 172 6 52 2 47 71 94 10 205 5 267 195 116 213 361 Core Hits 1366 | 4 9 . 53 . . 23 65 99 29 11 51 33 78 85 14 . 27 13 89 . 11 . 52 28 15 4 105 . 124 86 63 75 120 Critical Hits 145 | . . . . . . . 4 2 . 1 1 . . 7 7 . 5 1 8 1 1 . 2 7 4 1 23 . 17 10 9 14 20 Critical Kills 40 | . . . . . . . 2 . . . 1 . . 2 2 . 3 . 3 . . . 1 2 2 1 7 . 5 2 2 3 2 Critical Parts Destroyed 82 | . . . . . . . 2 2 . 1 . . . 5 1 . 2 1 5 1 . . 1 4 . . 14 . 10 8 6 8 11 Melee Attacks 573 | . . . . . . . . 4 1 5 . 10 20 32 61 . 256 4 33 8 . 1 3 1 42 . . 3 3 16 . 25 45 Impact . | . . . . . . . . . . . . . . . . . . . . . . . . . . . . . . . . . . Slashing 224 | . . . . . . . . 4 1 1 . . 20 27 . . . 1 33 8 . 1 3 1 42 . . 3 3 16 . 25 35 Piercing 335 | . . . . . . . . . . . . . . 5 61 . 256 3 . . . . . . . . . . . . . . 10 Sneak Attacks 111 | . . . . . . . . . . 1 . 3 . . 61 . 2 . . 2 . . . . 42 . . . . . . . . Combat Hostiles 106 | . . . . . . . . . . 1 . . . . 61 . . . . 2 . . . . 42 . . . . . . . . Follow-up Attacks . | . . . . . . . . . . . . . . . . . . . . . . . . . . . . . . . . . . Damage Inflicted 89750 | 119 205 20 1860 . . 1107 1680 3923 1689 373 2188 1790 2351 4533 3154 . 2662 702 6224 284 1111 . 4047 1490 3338 186 6681 . 7685 5714 4458 4927 15249 Guns 49417 | 119 205 20 1532 . . . 1680 2447 . 373 331 360 1413 3390 33 . 779 702 3290 . 1111 . 447 1490 511 186 3209 . 6133 4960 2416 4811 7469 Cannons 20 | . . . . . . . . . . . . . . . . . . . . . . . . . . . . . . . . . 20 Explosions 26198 | . . . 328 . . 1107 . 1476 1689 . 1857 1430 728 1143 . . . . 1475 29 . . 3600 . . . 3313 . 1552 754 2042 116 3559 Melee 13275 | . . . . . . . . . . . . . 210 . 2871 . 1883 . 1459 255 . . . . 2508 . . . . . . . 4089 Ramming 11 | . . . . . . . . . . . . . . . . . . . . . . . . . . . . . . . . . 11 Kinetic 48917 | 119 205 20 1312 . . . 1680 2447 . 373 331 360 1194 3309 33 . 779 702 3290 . 1111 . 447 1490 511 186 3209 . 6133 4960 2416 4811 7489 Thermal 1987 | . . . 66 . . . . 138 59 . . 165 219 . 250 . . . . 29 . . 69 . 319 . 287 . . 285 . . 101 Explosive 16544 | . . . 262 . . 1107 . 197 . . 1857 416 728 1143 . . . . 1475 . . . 1331 . . . 1009 . 1552 . 2042 116 3309 Electromagnetic 9016 | . . . 220 . . . . 1141 1630 . . 849 . 81 . . . . . . . . 2200 . . . 2176 . . 469 . . 250 Impact . | . . . . . . . . . . . . . . . . . . . . . . . . . . . . . . . . . . Slashing 8521 | . . . . . . . . . . . . . 210 . . . . . 1459 255 . . . . 2508 . . . . . . . 4089 Piercing 4754 | . . . . . . . . . . . . . . . 2871 . 1883 . . . . . . . . . . . . . . . . Highest Corruption 15 | . . . . . . . . 2 5 . . 4 4 14 14 14 14 14 14 . 3 3 4 . 2 2 6 . 2 . 1 2 15 Average Corruption 7 | . . . . . . . . 1 3 . . 3 4 7 14 14 14 14 14 . 1 3 3 . 1 2 4 . 1 . 1 1 8 Corruption Purged 15 | . . . . . . . . . . . . . . . . . . . . . . . . . . . . . . . . . 15 Effects 1210 | . . . . . . . . 6 31 . . 4 90 31 121 28 242 26 232 . 10 3 64 . 10 1 87 . 34 . 7 8 175 Message Errors 251 | . . . . . . . . 1 10 . . 1 18 6 31 5 46 3 36 . 3 . 14 . 6 1 19 . 9 . 2 1 39 Matter Fused 235 | . . . . . . . . . 10 . . . 29 3 25 5 43 5 43 . . . 16 . . . 27 . . . . . 29 Heat Flow Errors 131 | . . . . . . . . 1 4 . . . 11 2 11 6 29 1 18 . . 1 9 . 2 . 9 . 7 . . 1 19 Energy Discharges 108 | . . . . . . . . 2 1 . . 1 12 1 14 2 18 3 13 . 1 . 12 . 2 . 3 . 3 . 3 1 16 Parts Rejected 4 | . . . . . . . . . . . . . . . . . 1 . 2 . . . 1 . . . . . . . . . . Data Loss (minor) 131 | . . . . . . . . 1 2 . . 1 13 1 8 5 23 3 13 . 4 2 8 . . . 14 . 8 . 1 1 23 Data Loss (major) 30 | . . . . . . . . . 1 . . . . 2 3 2 5 3 8 . . . . . . . 2 . . . . . 4 Misfires 30 | . . . . . . . . . . . . . . 2 2 . 12 2 5 . . . . . . . 6 . . . . . 1 Alerts 16 | . . . . . . . . . . . . . . 2 2 . 6 . 3 . . . . . . . . . . . . . 3 Misdirections 97 | . . . . . . . . . . . . . . 5 9 3 27 . 30 . . . . . . . . . . . . . 23 Targeting Errors 162 | . . . . . . . . 1 2 . . 1 7 6 16 . 30 4 55 . 2 . 4 . . . 7 . 7 . 1 4 15 Weapon Failures 15 | . . . . . . . . . 1 . . . . 1 . . 2 2 6 . . . . . . . . . . . . . 3 Overload Shots . | . . . . . . . . . . . . . . . . . . . . . . . . . . . . . . . . . . Overflow Damage 1328 | . . . 39 . . 34 . 11 10 . 12 89 32 39 . . 50 . 148 34 . . 3 . . . 17 . 6 16 35 4 749 Projectiles . | . . . . . . . . . . . . . . . . . . . . . . . . . . . . . . . . . . Explosions 608 | . . . 39 . . 34 . 11 10 . 12 89 . 39 . . . . 41 . . . 3 . . . 17 . 6 16 35 4 252 Melee 720 | . . . . . . . . . . . . . 32 . . . 50 . 107 34 . . . . . . . . . . . . 497 Knockbacks . | . . . . . . . . . . . . . . . . . . . . . . . . . . . . . . . . . . Impact . | . . . . . . . . . . . . . . . . . . . . . . . . . . . . . . . . . . Kinetic . | . . . . . . . . . . . . . . . . . . . . . . . . . . . . . . . . . . Secondary . | . . . . . . . . . . . . . . . . . . . . . . . . . . . . . . . . . . Self-Inflicted Damage 1965 | . . . 36 . . 51 . 370 94 . . 203 . . . . . . . 56 . . 100 . . . 289 . . 185 58 119 404 Shots 78 | . . . 1 . . 2 . 12 6 . . 8 . . . . . . . 1 . . 14 . . . 16 . . 5 2 1 10 Rammed 3 | . . . . . . . . . . . . . . . . . . . . . . . . . . . . . . . . . 3 Targets Rammed 3 | . . . . . . . . . . . . . . . . . . . . . . . . . . . . . . . . . 3 Kicked . | . . . . . . . . . . . . . . . . . . . . . . . . . . . . . . . . . . Crushed . | . . . . . . . . . . . . . . . . . . . . . . . . . . . . . . . . . . Highest Temperature 572 | . 6 . 36 . . 4 361 231 229 64 113 65 231 371 277 247 262 252 269 . 286 161 190 197 297 10 271 18 390 198 195 196 572 Average Temperature 90 | . 6 . 9 . . 4 82 63 52 24 46 27 93 129 102 124 98 83 91 . 85 55 45 115 78 6 68 10 113 76 80 88 109 Received Heat Transfer 5350 | . 18 . 351 . . 63 369 684 45 156 96 519 384 402 . . 138 89 275 13 . . 192 53 . . 311 4 460 465 16 160 87 Effects 36 | . . . . . . . 2 . . . . . . 6 . . . 1 . . 1 . . . . . . . 3 . . . 23 Shutdowns 8 | . . . . . . . 1 . . . . . . 1 . . . . . . . . . . . . . . . . . . 6 Energy Bleed 5 | . . . . . . . 1 . . . . . . 2 . . . . . . 1 . . . . . . . 1 . . . . Interference 14 | . . . . . . . . . . . . . . 2 . . . 1 . . . . . . . . . . 2 . . . 9 Matter Decay 1 | . . . . . . . . . . . . . . . . . . . . . . . . . . . . . . . . . 1 Short Circuit 2 | . . . . . . . . . . . . . . 1 . . . . . . . . . . . . . . . . . . 1 Damage (minor) 2 | . . . . . . . . . . . . . . . . . . . . . . . . . . . . . . . . . 2 Damage (major) 4 | . . . . . . . . . . . . . . . . . . . . . . . . . . . . . . . . . 4 Siege Activations 57 | . . . . . . . . . . . . . . . . . . . 4 . . . 9 2 . . 12 . 9 7 5 5 4 Total Turns 1790 | . . . . . . . . . . . . . . . . . . . 61 . . . 117 55 . . 386 . 556 178 160 117 160 Longest Duration 193 | . . . . . . . . . . . . . . . . . . . 21 . . . 32 31 . . 78 . 193 59 85 41 92 Robots Corrupted 31 | . . . . . . . . 3 6 . . . . . . . . . . . . . 10 . . . 11 . . . . . 1 Combat Hostiles 25 | . . . . . . . . 3 3 . . . . . . . . . . . . . 10 . . . 8 . . . . . 1 Parts Fried 56 | . . . . . . . . 7 5 . . 2 . . . . . . . . . . 21 . . . 18 . . 2 . . 1 Impact Corruptions . | . . . . . . . . . . . . . . . . . . . . . . . . . . . . . . . . . . Robots Melted . | . . . . . . . . . . . . . . . . . . . . . . . . . . . . . . . . . . Combat Hostiles . | . . . . . . . . . . . . . . . . . . . . . . . . . . . . . . . . . . Parts Melted 1 | . . . . . . . . . . . . . . . . . . 1 . . . . . . . . . . . . . . . Heat Transferred 4078 | . . . 100 . . . . 200 150 . . 150 555 . 814 . . . . 50 . . . . 1073 . 655 . . 250 . . 81 Parts Sabotaged . | . . . . . . . . . . . . . . . . . . . . . . . . . . . . . . . . . . Parts Stolen . | . . . . . . . . . . . . . . . . . . . . . . . . . . . . . . . . . . Parts Stripped . | . . . . . . . . . . . . . . . . . . . . . . . . . . . . . . . . . . Power Chain Reactions 24 | . . . 1 . . . . 5 6 . . 5 . . . . . . . . . . 1 . . . 4 . . 2 . . . Missiles Intercepted 21 | . . . . . . . . . . . . . . . . . . . . . . . . . . . . . 4 . . . 17 Alert | -11 -10 -10 -9 -9 -9 -8 -8 -8 -8 -7 -7 -7 -7 -6 -6 -6 -6 -6 -6 -5 -5 -5 -5 -4 -4 -4 -4 -3 -3 -2 -2 -1 -1 ------- Run | Scr Mat Min Mat Min Exi Min Mat Sto Gar Fac Gar Fac Gar Fac Was Fac Gar Fac Gar Fac Was Fac Gar Fac Was Fac Gar Res Gar Res Gar Acc Com Peak Influence 1790 | 15 200 95 365 98 . 331 484 867 1268 783 1331 1177 1543 1126 342 574 1656 1016 1790 1168 427 2 1049 1014 401 96 1339 777 1788 1070 1385 940 198 Initial 1005 | . 9 17 . 98 . . 128 167 544 665 548 698 816 809 342 . 401 869 604 939 408 . 1 550 354 . 67 753 525 1005 372 818 127 Average 810 | 4 82 15 138 98 . 177 357 564 1026 724 1099 925 1293 912 79 163 1371 903 1274 1046 240 1 680 647 183 86 916 744 1235 514 760 340 60 Maximum Alert Level 5 | . 1 . 1 . . 1 2 3 4 3 4 4 4 4 1 2 5 3 5 4 2 . 3 3 2 . 4 3 5 3 4 3 5 Low Security (%) 30 | 100 84 100 72 100 . 56 4 10 . . . . . . 83 73 . . . . 33 100 9 . 42 100 8 . . 34 . 60 75 Level 1 7 | . 15 . 27 . . 43 67 11 . . . . . . 16 7 . . . . 33 . 7 . 46 . 4 . . 19 18 10 2 Level 2 8 | . . . . . . . 27 46 6 25 4 12 . 7 . 19 2 . 13 . 33 . 8 73 10 . 15 9 9 10 15 . 4 Level 3 20 | . . . . . . . . 30 40 74 37 60 14 82 . . 5 100 12 51 . . 74 26 . . 29 90 17 36 57 28 3 Level 4 28 | . . . . . . . . . 53 . 57 27 85 9 . . 86 . 52 48 . . . . . . 42 . 70 . 7 . 4 Level 5 3 | . . . . . . . . . . . . . . . . . 6 . 20 . . . . . . . . . 1 . . . 9 High Security . | . . . . . . . . . . . . . . . . . . . . . . . . . . . . . . . . . . Max Security . | . . . . . . . . . . . . . . . . . . . . . . . . . . . . . . . . . . Squads Dispatched 75 | . 4 . 3 . . 1 4 9 . 3 . 9 . 12 . 4 . 2 . 2 . . . 2 . 1 . 2 . 9 . 6 2 Investigation 15 | . 2 . 2 . . . 1 2 . 1 . 1 . 2 . 1 . 1 . . . . . . . . . . . . . 2 . Extermination 14 | . . . . . . . . . . . . 1 . 4 . 2 . 1 . . . . . . . 1 . . . 1 . 2 2 Reinforcement 24 | . 2 . 1 . . 1 2 2 . 1 . 4 . 2 . 1 . . . . . . . 1 . . . 1 . 4 . 2 . Assault 9 | . . . . . . . . 2 . . . 1 . 4 . . . . . . . . . 1 . . . . . 1 . . . Garrison 13 | . . . . . . . 1 3 . 1 . 2 . . . . . . . 2 . . . . . . . 1 . 3 . . . Intercept . | . . . . . . . . . . . . . . . . . . . . . . . . . . . . . . . . . . Construction Impeded 7 | . . . . . . 1 . . . . . 3 . 2 . . . . . . . . . . . . . 1 . . . . . Haulers Reinforced 4 | . . . . . . . . . . . . . . . . 1 . . . . . . . 1 . . . . . 2 . . . Alert ID Control Effect 7 | . . . . . . . . . . . . . . . . . . . . . . . . . . . . 5 1 1 . . . Stealth | -11 -10 -10 -9 -9 -9 -8 -8 -8 -8 -7 -7 -7 -7 -6 -6 -6 -6 -6 -6 -5 -5 -5 -5 -4 -4 -4 -4 -3 -3 -2 -2 -1 -1 --------- Run | Scr Mat Min Mat Min Exi Min Mat Sto Gar Fac Gar Fac Gar Fac Was Fac Gar Fac Gar Fac Was Fac Gar Fac Was Fac Gar Res Gar Res Gar Acc Com Distress Signals 45 | . 2 . 5 . . . . 2 . . . 1 . 2 . . . . 1 1 . . . 2 . . . . . 1 . 3 25 Communications Jammed . | . . . . . . . . . . . . . . . . . . . . . . . . . . . . . . . . . . Distress Signals . | . . . . . . . . . . . . . . . . . . . . . . . . . . . . . . . . . . Times Spotted 631 | . 12 3 46 . . 10 28 59 16 9 9 29 18 39 4 7 14 11 27 7 5 . 22 9 6 2 43 10 41 45 14 44 42 Peak Tracking Total 11 | . 4 3 8 . . 5 9 8 6 4 5 6 5 8 1 3 4 3 5 4 2 . 5 5 2 2 5 4 9 7 4 7 11 Tactical Retreats 57 | . 1 . 4 . . 1 1 1 . 1 1 4 6 1 . . 1 4 9 . . . 3 . . . 4 . 2 3 . 4 6 Traps | -11 -10 -10 -9 -9 -9 -8 -8 -8 -8 -7 -7 -7 -7 -6 -6 -6 -6 -6 -6 -5 -5 -5 -5 -4 -4 -4 -4 -3 -3 -2 -2 -1 -1 ------- Run | Scr Mat Min Mat Min Exi Min Mat Sto Gar Fac Gar Fac Gar Fac Was Fac Gar Fac Gar Fac Was Fac Gar Fac Was Fac Gar Res Gar Res Gar Acc Com Traps Triggered 76 | . 2 . 1 . . . . . 7 . . 1 8 5 . . 16 . 10 1 . . 1 1 . . 8 . 13 . . 1 1 Indirectly 11 | . . . . . . . . . 6 . . . . . . . . . . . . . . . . . 5 . . . . . . Trap Hack Attempts . | . . . . . . . . . . . . . . . . . . . . . . . . . . . . . . . . . . Triggered . | . . . . . . . . . . . . . . . . . . . . . . . . . . . . . . . . . . Disarmed . | . . . . . . . . . . . . . . . . . . . . . . . . . . . . . . . . . . Reprogrammed . | . . . . . . . . . . . . . . . . . . . . . . . . . . . . . . . . . . Reused . | . . . . . . . . . . . . . . . . . . . . . . . . . . . . . . . . . . Traps Extracted . | . . . . . . . . . . . . . . . . . . . . . . . . . . . . . . . . . . Installed . | . . . . . . . . . . . . . . . . . . . . . . . . . . . . . . . . . . Triggered 2 | . . . . . . . . . . . . . . . . . . . . . . . . . . . . . . . . . 2 Machines | -11 -10 -10 -9 -9 -9 -8 -8 -8 -8 -7 -7 -7 -7 -6 -6 -6 -6 -6 -6 -5 -5 -5 -5 -4 -4 -4 -4 -3 -3 -2 -2 -1 -1 ---------- Run | Scr Mat Min Mat Min Exi Min Mat Sto Gar Fac Gar Fac Gar Fac Was Fac Gar Fac Gar Fac Was Fac Gar Fac Was Fac Gar Res Gar Res Gar Acc Com Machines Disabled 130 | . . . 4 . . . . 7 4 . 3 7 4 2 . 17 4 . 3 2 . . 6 7 . . 8 . 8 1 6 1 36 Max in Single Turn 4 | . . . 4 . . . . 1 1 . 2 2 2 1 . . 1 . 1 2 . . 2 4 . . 1 . 2 1 2 1 2 Garrison Access 2 | . . . . . . . . . . . . . . . . . . . . . . . . . . . . . . . . 2 . Garrison Relay 25 | . . . . . . . . . 2 . 1 . 2 . . . 4 . 3 . . . 4 . . . 5 . 2 . 2 . . Phase Generator 6 | . . . . . . . . . . . 1 . 1 . . . . . . . . . 1 . . . . . 1 . 1 . 1 Machines Sabotaged . | . . . . . . . . . . . . . . . . . . . . . . . . . . . . . . . . . . Garrisons Compromised . | . . . . . . . . . . . . . . . . . . . . . . . . . . . . . . . . . . Overloaded Fab Kills . | . . . . . . . . . . . . . . . . . . . . . . . . . . . . . . . . . . Fab Network Shutdowns . | . . . . . . . . . . . . . . . . . . . . . . . . . . . . . . . . . . Hacking | -11 -10 -10 -9 -9 -9 -8 -8 -8 -8 -7 -7 -7 -7 -6 -6 -6 -6 -6 -6 -5 -5 -5 -5 -4 -4 -4 -4 -3 -3 -2 -2 -1 -1 --------- Run | Scr Mat Min Mat Min Exi Min Mat Sto Gar Fac Gar Fac Gar Fac Was Fac Gar Fac Gar Fac Was Fac Gar Fac Was Fac Gar Res Gar Res Gar Acc Com Machines Accessed 57 | . 5 . 8 . 2 . 3 8 . 2 . 2 . 4 . 4 . 4 . 1 . 1 . 1 . 1 . 2 . 2 . 6 1 Terminals 29 | . 4 . 6 . . . 1 5 . . . 1 . 2 . . . 2 . . . . . 1 . . . 1 . 1 . 4 1 Fabricators 2 | . . . . . . . . . . . . . . . . 1 . . . 1 . . . . . . . . . . . . . Repair Stations 1 | . . . . . . . . . . . . . . . . 1 . . . . . . . . . . . . . . . . . Recycling Units 8 | . 1 . 2 . . . . 2 . 1 . . . 1 . . . 1 . . . . . . . . . . . . . . . Scanalyzers 3 | . . . . . . . 1 . . . . . . 1 . 1 . . . . . . . . . . . . . . . . . Garrison Access 12 | . . . . . . . 1 1 . 1 . 1 . . . 1 . 1 . . . 1 . . . 1 . 1 . 1 . 2 . Total Hacks 101 | . 12 . 19 . 2 . 7 13 . 2 . 3 . 8 . 8 . 4 . 2 . 1 . 1 . 1 . 2 . 3 . 11 2 Successful 57 | . 5 . 10 . 2 . 3 8 . 2 . 2 . 4 . 5 . 2 . 2 . 1 . . . 1 . 2 . 1 . 6 1 Failed 43 | . 6 . 9 . . . 4 5 . . . 1 . 4 . 3 . 2 . . . . . 1 . . . . . 2 . 5 1 Catastrophic 6 | . 1 . 2 . . . 1 . . . . . . . . . . 1 . . . . . 1 . . . . . . . . . Database Lockouts 1 | . 1 . . . . . . . . . . . . . . . . . . . . . . . . . . . . . . . . Manual 22 | . 7 . 5 . 1 . 1 3 . 1 . . . 2 . . . 1 . . . . . 1 . . . . . . . . . Terminals 62 | . 11 . 16 . . . 3 10 . . . 2 . 3 . . . 2 . . . . . 1 . . . 1 . 2 . 9 2 Fabricators 6 | . . . . . . . . . . . . . . . . 4 . . . 2 . . . . . . . . . . . . . Repair Stations 1 | . . . . . . . . . . . . . . . . 1 . . . . . . . . . . . . . . . . . Recycling Units 10 | . 1 . 3 . . . . 2 . 1 . . . 2 . . . 1 . . . . . . . . . . . . . . . Scanalyzers 8 | . . . . . . . 3 . . . . . . 3 . 2 . . . . . . . . . . . . . . . . . Garrison Access 12 | . . . . . . . 1 1 . 1 . 1 . . . 1 . 1 . . . 1 . . . 1 . 1 . 1 . 2 . Terminal Hacks 27 | . 4 . 8 . 2 . 1 4 . . . 1 . 1 . . . . . . . . . . . . . 1 . . . 4 1 Record 2 | . . . . . 1 . . . . . . . . . . . . . . . . . . . . . . 1 . . . . . Part Schematic 1 | . . . . . . . . . . . . 1 . . . . . . . . . . . . . . . . . . . . . Robot Analysis 3 | . 2 . 1 . . . . . . . . . . . . . . . . . . . . . . . . . . . . . . Prototype ID Bank 1 | . 1 . . . . . . . . . . . . . . . . . . . . . . . . . . . . . . . . Open Door 7 | . . . . . . . . 2 . . . . . . . . . . . . . . . . . . . . . . . 4 1 Unreport Threat 4 | . . . 2 . . . . 2 . . . . . . . . . . . . . . . . . . . . . . . . . Hauler Manifests 2 | . . . 1 . . . 1 . . . . . . . . . . . . . . . . . . . . . . . . . . Registered Components 1 | . . . 1 . . . . . . . . . . . . . . . . . . . . . . . . . . . . . . Zone Layout 5 | . 1 . 3 . . . . . . . . . . 1 . . . . . . . . . . . . . . . . . . . EX-Prototype ID Bank 1 | . . . . . 1 . . . . . . . . . . . . . . . . . . . . . . . . . . . . Fabricator Hacks 4 | . . . . . . . . . . . . . . . . 2 . . . 2 . . . . . . . . . . . . . Load Schematic 2 | . . . . . . . . . . . . . . . . 1 . . . 1 . . . . . . . . . . . . . Build 2 | . . . . . . . . . . . . . . . . 1 . . . 1 . . . . . . . . . . . . . Repair Station Hacks . | . . . . . . . . . . . . . . . . . . . . . . . . . . . . . . . . . . Recycling Unit Hacks . | . . . . . . . . . . . . . . . . . . . . . . . . . . . . . . . . . . Scanalyzer 7 | . . . . . . . 2 . . . . . . 3 . 2 . . . . . . . . . . . . . . . . . Insert Component 3 | . . . . . . . 1 . . . . . . 1 . 1 . . . . . . . . . . . . . . . . . Analyze 4 | . . . . . . . 1 . . . . . . 2 . 1 . . . . . . . . . . . . . . . . . Garrison Access Hacks 11 | . . . . . . . . 1 . 1 . 1 . . . 1 . 1 . . . 1 . . . 1 . 1 . 1 . 2 . Unlock Access 9 | . . . . . . . . 1 . 1 . 1 . . . 1 . 1 . . . 1 . . . 1 . 1 . 1 . . . Seal Access 2 | . . . . . . . . . . . . . . . . . . . . . . . . . . . . . . . . 2 . Unauthorized Hacks 8 | . 1 . 2 . . . . 3 . 1 . . . . . . . 1 . . . . . . . . . . . . . . . Terminals 1 | . . . . . . . . 1 . . . . . . . . . . . . . . . . . . . . . . . . . Assimilate 1 | . . . . . . . . 1 . . . . . . . . . . . . . . . . . . . . . . . . . Fabricators . | . . . . . . . . . . . . . . . . . . . . . . . . . . . . . . . . . . Repair Stations . | . . . . . . . . . . . . . . . . . . . . . . . . . . . . . . . . . . Recycling Units 7 | . 1 . 2 . . . . 2 . 1 . . . . . . . 1 . . . . . . . . . . . . . . . Tunnel 7 | . 1 . 2 . . . . 2 . 1 . . . . . . . 1 . . . . . . . . . . . . . . . Scanalyzers . | . . . . . . . . . . . . . . . . . . . . . . . . . . . . . . . . . . Garrison Access . | . . . . . . . . . . . . . . . . . . . . . . . . . . . . . . . . . . Data Cores Recovered . | . . . . . . . . . . . . . . . . . . . . . . . . . . . . . . . . . . Used . | . . . . . . . . . . . . . . . . . . . . . . . . . . . . . . . . . . Hacking Detections 33 | . 4 . 5 . . . 3 2 . 1 . 1 . 2 . 2 . 3 . 1 . 1 . 1 . . . 2 . 2 . 2 1 Full Trace Events 4 | . . . . . . . 1 . . . . . . 1 . 1 . . . . . . . . . . . . . . . 1 . Feedback Events . | . . . . . . . . . . . . . . . . . . . . . . . . . . . . . . . . . . Feedback Blocked . | . . . . . . . . . . . . . . . . . . . . . . . . . . . . . . . . . . Robot Schematics Acquired . | . . . . . . . . . . . . . . . . . . . . . . . . . . . . . . . . . . Robots Built . | . . . . . . . . . . . . . . . . . . . . . . . . . . . . . . . . . . Matter . | . . . . . . . . . . . . . . . . . . . . . . . . . . . . . . . . . . Time . | . . . . . . . . . . . . . . . . . . . . . . . . . . . . . . . . . . Total Robot Build Rating . | . . . . . . . . . . . . . . . . . . . . . . . . . . . . . . . . . . Part Schematics Acquired 4 | . . . . . . . 1 . . . . 1 . 1 . 1 . . . . . . . . . . . . . . . . . Parts Built 2 | . . . . . . . . . . . . . . . . 1 . . . 1 . . . . . . . . . . . . . Matter 204 | . . . . . . . . . . . . . . . . 102 . . . 102 . . . . . . . . . . . . . Time 76 | . . . . . . . . . . . . . . . . 51 . . . 25 . . . . . . . . . . . . . Total Part Build Rating 2 | . . . . . . . . . . . . . . . . 1 . . . 1 . . . . . . . . . . . . . Parts Repaired . | . . . . . . . . . . . . . . . . . . . . . . . . . . . . . . . . . . Time . | . . . . . . . . . . . . . . . . . . . . . . . . . . . . . . . . . . Parts Recycled . | . . . . . . . . . . . . . . . . . . . . . . . . . . . . . . . . . . Recycled Matter . | . . . . . . . . . . . . . . . . . . . . . . . . . . . . . . . . . . Retrieved Matter . | . . . . . . . . . . . . . . . . . . . . . . . . . . . . . . . . . . Retrieved Components . | . . . . . . . . . . . . . . . . . . . . . . . . . . . . . . . . . . Parts Scanalyzed 3 | . . . . . . . 1 . . . . . . 1 . 1 . . . . . . . . . . . . . . . . . Part Schematics Acquired 3 | . . . . . . . 1 . . . . . . 1 . 1 . . . . . . . . . . . . . . . . . Parts Damaged . | . . . . . . . . . . . . . . . . . . . . . . . . . . . . . . . . . . Bothacking | -11 -10 -10 -9 -9 -9 -8 -8 -8 -8 -7 -7 -7 -7 -6 -6 -6 -6 -6 -6 -5 -5 -5 -5 -4 -4 -4 -4 -3 -3 -2 -2 -1 -1 ------------ Run | Scr Mat Min Mat Min Exi Min Mat Sto Gar Fac Gar Fac Gar Fac Was Fac Gar Fac Gar Fac Was Fac Gar Fac Was Fac Gar Res Gar Res Gar Acc Com Used RIF Installer 9 | . . . . . . . . . 1 . 1 . 1 . . . 1 . 1 . . . 1 . . . 1 . 1 . 1 . . Zone Cloak 1 | . . . . . . . . . . . . . . . . . . . . . . . . . . . 1 . . . . . . Robot Detection 1 | . . . . . . . . . . . 1 . . . . . . . . . . . . . . . . . . . . . . Patrol Navigation 1 | . . . . . . . . . . . . . . . . . 1 . . . . . . . . . . . . . . . . Alert ID Control 1 | . . . . . . . . . . . . . . . . . . . 1 . . . . . . . . . . . . . . Structural Interface 1 | . . . . . . . . . . . . . . . . . . . . . . . 1 . . . . . . . . . . Program Shield 1 | . . . . . . . . . . . . . 1 . . . . . . . . . . . . . . . . . . . . Autooverride 1 | . . . . . . . . . . . . . . . . . . . . . . . . . . . . . . . 1 . . Crosswire 1 | . . . . . . . . . . . . . . . . . . . . . . . . . . . . . 1 . . . . Robots Hacked 63 | . . . . . . . . . . 3 . 5 3 3 6 . . 1 . 2 6 1 . 1 6 1 . 5 4 5 2 8 1 Non-combat 15 | . . . . . . . . . . . . 2 . 2 . . . . . . . 1 . 1 . . . . . 1 . 8 . Combat 48 | . . . . . . . . . . 3 . 3 3 1 6 . . 1 . 2 6 . . . 6 1 . 5 4 4 2 . 1 Autooverrided 3 | . . . . . . . . . . . . . . . . . . . . . . . . . . . . . . . 2 . 1 Robot Hacks Applied 92 | . . . . . . . . . . 4 . 6 3 4 7 . . 2 . 4 7 1 . 1 6 2 . 6 6 13 . 20 . parse_system 3 | . . . . . . . . . . . . . . . 1 . . . . . . . . . . . . . 1 . . 1 . no_distress 5 | . . . . . . . . . . . . 2 . . . . . . . . . 1 . . . . . . . 1 . 1 . find_chute 3 | . . . . . . . . . . . . . . 2 . . . . . . . . . 1 . . . . . . . . . purge_threat 15 | . . . . . . . . . . . . . . . . . . . . . . . . . . . . . . 7 . 8 . block_reporting 1 | . . . . . . . . . . . . . . . . . . . . . . . . . . . . . . . . 1 . map_route 6 | . . . . . . . . . . . . . . . . . . . . . . . . . . . . . . . . 6 . mark_security 2 | . . . . . . . . . . . . . . . . . . . . . . . . . . . . . . . . 2 . ignore_targets 19 | . . . . . . . . . . . . . . . 6 . . . . . 7 . . . 6 . . . . . . . . find_garrison 8 | . . . . . . . . . . 1 . 1 . 1 . . . 1 . 1 . . . . . 1 . 1 . 1 . . . reboot_system 4 | . . . . . . . . . . . . . 1 . . . . . . 2 . . . . . . . . 1 . . . . overwrite_iff 18 | . . . . . . . . . . 3 . 2 2 . . . . . . . . . . . . . . 4 4 3 . . . formatsys_low 1 | . . . . . . . . . . . . . . . . . . . . . . . . . . . . . . . . 1 . formatsys_high 7 | . . . . . . . . . . . . 1 . 1 . . . 1 . 1 . . . . . 1 . 1 . 1 . . . Relay Couplers Released 98 | . . . . . . . . . 7 . 5 . 8 . . . 13 . 14 . . . 13 . . . 21 . 8 . 9 . . Machine Destruction 98 | . . . . . . . . . 7 . 5 . 8 . . . 13 . 14 . . . 13 . . . 21 . 8 . 9 . . Attached 27 | . . . . . . . . . . 1 . 2 . 2 . . . 1 . 1 1 . 1 . 1 1 . 3 . 5 . 6 2 Crosswired 5 | . . . . . . . . . . . . . . . . . . . . . . . . . . . . . 3 . 2 . . Robots Rewired 18 | . . . . . . . . . . . . . 6 . . . 3 . . . . . . . . . 6 . 3 . . . . Allies Hacked 1 | . . . . . . . . . . . . . . . . . . . . . . . . . . . . . . . . . 1 Hacks Repelled . | . . . . . . . . . . . . . . . . . . . . . . . . . . . . . . . . . . Allies | -11 -10 -10 -9 -9 -9 -8 -8 -8 -8 -7 -7 -7 -7 -6 -6 -6 -6 -6 -6 -5 -5 -5 -5 -4 -4 -4 -4 -3 -3 -2 -2 -1 -1 -------- Run | Scr Mat Min Mat Min Exi Min Mat Sto Gar Fac Gar Fac Gar Fac Was Fac Gar Fac Gar Fac Was Fac Gar Fac Was Fac Gar Res Gar Res Gar Acc Com Total Allies 67 | . . 2 . . . . . . . 3 . 3 8 1 19 . 3 1 . 1 . . . . . 1 6 5 6 4 2 1 1 Largest Group 19 | . . 2 2 . . . . . . 1 . 1 6 1 19 19 15 2 . 1 1 . . . . 1 7 7 3 6 1 1 1 Highest-Rated Group 714 | . . 47 44 . . . . . . 16 . 32 96 44 714 714 589 62 . 49 49 . . . . 12 198 211 168 348 58 44 63 Highest-Rated Ally 64 | . . 31 28 . . . . . . 16 . 32 16 44 50 50 50 33 . 49 49 . . . . 12 49 64 56 64 58 44 63 Total Orders 17 | . . . . . . . . . . . . . 2 . . . . . . . 2 . . . . . 4 . 2 . . 2 5 STAY 8 | . . . . . . . . . . . . . 1 . . . . . . . 1 . . . . . 2 . 1 . . 1 2 FOLLOW 7 | . . . . . . . . . . . . . 1 . . . . . . . 1 . . . . . 2 . 1 . . 1 1 EXPLORE 2 | . . . . . . . . . . . . . . . . . . . . . . . . . . . . . . . . . 2 Ally Attacks 465 | . . 5 3 . . . . . . 10 . 25 53 . . 81 97 6 . 13 41 . . . . . . 33 13 44 2 . 39 Total Damage 14348 | . . 105 42 . . . . . . 120 . 653 598 . . 1617 4328 113 . 425 1749 . . . . . . 802 385 1326 88 . 1997 Kills 83 | . . 3 . . . . . . . 1 . 7 6 . . 13 33 . . 2 2 . . . . . . 7 1 7 . . 1 Allies Corrupted 3 | . . . . . . . . . . . . . 1 . . . . . . . 1 . . . . . . . . . . . 1 Allies Melted . | . . . . . . . . . . . . . . . . . . . . . . . . . . . . . . . . . . Turrets Deployed 3 | . . . . . . . . . . . . . . . . . . . . . . . . . . . . . . . . . 3 Intel | -11 -10 -10 -9 -9 -9 -8 -8 -8 -8 -7 -7 -7 -7 -6 -6 -6 -6 -6 -6 -5 -5 -5 -5 -4 -4 -4 -4 -3 -3 -2 -2 -1 -1 ------- Run | Scr Mat Min Mat Min Exi Min Mat Sto Gar Fac Gar Fac Gar Fac Was Fac Gar Fac Gar Fac Was Fac Gar Fac Was Fac Gar Res Gar Res Gar Acc Com Robot Analysis Total 3 | . 2 . 1 . . . . . . . . . . . . . . . . . . . . . . . . . . . . . . Derelict Logs Recovered 2 | . . 2 . . . . . . . . . . . . . . . . . . . . . . . . . . . . . . . Drone Launches 2 | . . . . . . . . . . . . . . . . . . . . . . . . . . . . . . . . . 2 Drone Recoveries . | . . . . . . . . . . . . . . . . . . . . . . . . . . . . . . . . . . Exploration | -11 -10 -10 -9 -9 -9 -8 -8 -8 -8 -7 -7 -7 -7 -6 -6 -6 -6 -6 -6 -5 -5 -5 -5 -4 -4 -4 -4 -3 -3 -2 -2 -1 -1 ------------- Run | Scr Mat Min Mat Min Exi Min Mat Sto Gar Fac Gar Fac Gar Fac Was Fac Gar Fac Gar Fac Was Fac Gar Fac Was Fac Gar Res Gar Res Gar Acc Com Turns Passed 64142 | 168 559 1108 1522 31 565 203 1039 1753 1360 282 2167 620 4332 1772 2439 599 4802 510 3698 325 1212 280 3538 312 1395 282 4267 154 4369 956 2271 1390 13862 Spaces Moved 26514 | 84 264 669 627 18 270 86 339 620 647 85 1117 214 1637 553 509 266 1896 195 1488 143 346 136 1808 89 503 127 2045 71 1896 321 984 545 5916 Core 102 | 4 . . . . . . . . . . . . . . . . . . 23 . . . . . . . . . . . . . 75 Treads 26338 | 80 264 669 627 18 270 86 339 620 645 85 1117 214 1637 553 509 266 1896 195 1435 143 346 136 1808 89 503 127 2045 71 1896 321 984 545 5799 Legs 30 | . . . . . . . . . . . . . . . . . . . 30 . . . . . . . . . . . . . . Wheels 2 | . . . . . . . . . 2 . . . . . . . . . . . . . . . . . . . . . . . . Hover 42 | . . . . . . . . . . . . . . . . . . . . . . . . . . . . . . . . . 42 Flight . | . . . . . . . . . . . . . . . . . . . . . . . . . . . . . . . . . . Fastest Speed 50 | 50 160 160 180 180 180 200 200 200 160 212 152 212 170 220 200 200 200 200 150 180 180 180 160 180 180 180 160 180 160 170 155 165 50 Average Speed 181 | 154 160 160 183 180 204 200 225 210 185 218 174 223 230 239 208 200 200 200 200 180 180 180 165 180 192 180 166 180 177 178 161 172 156 Slowest Speed 450 | 160 160 160 200 180 260 260 260 230 300 280 212 250 250 340 240 200 220 200 450 180 180 180 180 180 200 180 180 180 200 180 175 175 200 Overloaded Moves . | . . . . . . . . . . . . . . . . . . . . . . . . . . . . . . . . . . Propulsion Burnouts . | . . . . . . . . . . . . . . . . . . . . . . . . . . . . . . . . . . Robots Hopped . | . . . . . . . . . . . . . . . . . . . . . . . . . . . . . . . . . . Cave-ins Triggered 6 | . . . . . . . . . . . . . 1 5 . . . . . . . . . . . . . . . . . . . Exploration Rate (%) 48 | 7 43 99 64 7 62 34 33 91 70 1 71 5 74 21 92 13 93 7 84 5 89 5 98 4 85 3 98 3 86 21 60 27 95 Regions Visited 33 Branch Regions 6 Pre-discovered Areas 9 | . 1 1 2 . 1 . . 2 . 1 . . . . . . . 1 . . . . . . . . . . . . . . . Known Exits Taken 10 | . . . . . . . 1 1 . 1 . 1 . . . 1 . 1 . . . 1 . . . 1 . 1 . 1 . . . Unknown Exits Taken 8 | 1 1 1 1 1 1 1 . . . . . . . . . . . . . . . . . . . . . . . . . 1 . Scrap Searched 1 | . . 1 . . . . . . . . . . . . . . . . . . . . . . . . . . . . . . . Spaces Dug 315 | . . . . . . . . 1 . 1 . . 2 31 . . 73 4 14 6 . 1 4 1 . . . 3 12 16 . 21 125 Terrain Destroyed 2703 | . . . 32 . . 97 . 41 4 1 259 74 175 70 . . 75 5 136 72 1 1 76 100 1 2 82 3 235 39 294 48 780 Melee 170 | . . . . . . . . 1 . 1 . . 2 31 . . 71 4 10 6 . 1 2 1 . . . 3 2 16 . 17 2 Projectile 136 | . . . . . . . . . . . . . . 2 . . 4 1 31 . 1 . 3 14 1 2 9 . 20 4 15 7 22 AOE 2397 | . . . 32 . . 97 . 40 4 . 259 74 173 37 . . . . 95 66 . . 71 85 . . 73 . 213 19 279 24 756 Terrain Rammed . | . . . . . . . . . . . . . . . . . . . . . . . . . . . . . . . . . . Walls Destroyed . | . . . . . . . . . . . . . . . . . . . . . . . . . . . . . . . . . . Machines Disabled . | . . . . . . . . . . . . . . . . . . . . . . . . . . . . . . . . . . Actions | -11 -10 -10 -9 -9 -9 -8 -8 -8 -8 -7 -7 -7 -7 -6 -6 -6 -6 -6 -6 -5 -5 -5 -5 -4 -4 -4 -4 -3 -3 -2 -2 -1 -1 --------- Run | Scr Mat Min Mat Min Exi Min Mat Sto Gar Fac Gar Fac Gar Fac Was Fac Gar Fac Gar Fac Was Fac Gar Fac Was Fac Gar Res Gar Res Gar Acc Com Total 38995 | 102 378 704 842 17 283 103 498 877 773 151 1287 314 2092 800 1722 331 2359 275 1981 191 897 168 2233 168 749 165 2694 87 2645 528 1606 838 10137 Wait 7903 | . 72 30 80 . . . 74 110 23 38 35 39 188 84 1065 54 111 49 192 25 487 20 185 29 78 16 342 . 403 76 455 122 3421 Move 26484 | 83 263 668 626 17 269 85 338 620 646 85 1116 214 1635 550 508 265 1894 195 1487 143 345 135 1807 89 502 127 2044 71 1895 320 983 544 5915 Hop . | . . . . . . . . . . . . . . . . . . . . . . . . . . . . . . . . . . Pick Up 639 | 3 18 1 8 . 5 1 8 16 31 2 47 7 69 12 16 1 18 2 58 3 8 3 64 6 20 1 62 2 55 8 46 14 24 Fast Attach 388 | 7 . . 5 . 1 . 3 6 12 . 13 2 15 7 5 3 3 1 25 . 2 . 14 2 . 2 15 . 36 3 14 6 186 Attach 172 | . . . 6 . 3 1 4 7 3 4 6 3 12 12 3 . 1 . 8 1 . 3 13 2 5 3 11 2 10 10 4 8 27 Detach 59 | . . . . . . 1 2 1 5 . 4 . . 2 3 . . . 9 . . . 5 . 3 . 4 . 4 1 4 . 11 Swap 195 | . 3 1 7 . 2 1 6 12 . 5 1 7 11 11 5 3 5 8 6 5 5 1 4 3 5 2 9 2 4 12 1 26 22 Drop 651 | . 7 2 13 . 3 . 6 16 12 . 23 9 37 10 25 3 8 2 47 . 23 1 33 6 20 4 49 . 53 7 30 12 190 Fire 1764 | 9 15 2 97 . . 14 57 85 38 12 42 23 56 73 31 2 22 14 96 6 27 4 105 30 74 10 154 7 141 75 69 81 293 Melee 573 | . . . . . . . . 4 1 5 . 10 20 32 61 . 256 4 33 8 . 1 3 1 42 . . 3 3 16 . 25 45 Ram 3 | . . . . . . . . . . . . . . . . . . . . . . . . . . . . . . . . . 3 Kick . | . . . . . . . . . . . . . . . . . . . . . . . . . . . . . . . . . . Crush . | . . . . . . . . . . . . . . . . . . . . . . . . . . . . . . . . . . Escape Stasis 89 | . . . . . . . . . 2 . . . 11 7 . . 27 . 20 . . . . . . . 4 . 18 . . . . Rewire 75 | . . . . . . . . . . . . . 38 . . . 14 . . . . . . . . . . . 23 . . . . Trap . | . . . . . . . . . . . . . . . . . . . . . . . . . . . . . . . . . . Miscellaneous . | . . . . . . . . . . . . . . . . . . . . . . . . . . . . . . . . . . Route ------- -11/Scrapyard -10/Materials -10/Mines (discovered 2 exits: *Mat x2) -9/Materials (discovered 2 exits: *Mat / [*Min]) -9/Mines -9/Exiles -8/Mines -8/Materials -8/Storage (discovered 2 exits: *Fac / Gar) -8/Garrison (discovered 2 exits: *Fac x2) -7/Factory -7/Garrison (discovered 3 exits: *Fac x3) -7/Factory -7/Garrison -6/Factory -6/Waste -6/Factory -6/Garrison (discovered 3 exits: *Fac x3) -6/Factory -6/Garrison (discovered 3 exits: *Fac x3) -5/Factory -5/Waste -5/Factory (discovered 2 exits: [*Upp] / Gar) -5/Garrison (discovered 3 exits: *Fac x3) -4/Factory -4/Waste -4/Factory -4/Garrison (discovered 3 exits: *Res x3) -3/Research (discovered 2 exits: [*Tes] / Gar) -3/Garrison (discovered 2 exits: *Res x2) -2/Research (discovered 2 exits: *Acc / Gar) -2/Garrison (discovered 2 exits: *Acc x2) -1/Access (discovered 2 exits: *Sur / *Com) -1/Command (discovered 2 exits: *Sur x2) 0b11 Command History --------- Turn | Location | Event 3 | -11/Scrapyard | Discovered new exit (range 15) 169 | -11/Scrapyard | Entered Materials 317 | -10/Materials | Build established: Mutant 584 | -10/Materials | Discovered new exit (range 16) 715 | -10/Materials | Central database locked down 728 | -10/Materials | Entered Mines 748 | -10/Mines | Met a Derelict bent on vengeance 778 | -10/Mines | Discovered new exit (range 8) 848 | -10/Mines | Learned location of Storage (-8) 1314 | -10/Mines | Learned Materials emergency access door positions 1431 | -10/Mines | Discovered new exit (range 15) 1442 | -10/Mines | Learned Materials security intel 1836 | -10/Mines | Entered Materials 1836 | -9/Materials | Accompanied by 2 allies 1836 | -9/Materials | Evolved 2 slots: Utility x2 1841 | -9/Materials | Led the pair of lost Derelicts to an unsafe place 2452 | -9/Materials | Build established: Scavenger-Mutant 2464 | -9/Materials | Discovered new exit (range 15) 2733 | -9/Materials | Discovered new exit (range 7) 3032 | -9/Materials | Core integrity fell below 50% 3077 | -9/Materials | Lost 7 parts (1p2n1u3w) 3290 | -9/Materials | Build established: Mutant 3358 | -9/Materials | Entered Mines 3378 | -9/Mines | Deemed a non-threat by the Exiles lab entrance 3378 | -9/Mines | Discovered new exit (range 5) 3389 | -9/Mines | Entered Exiles 3433 | -9/Exiles | Met 8R-AWN 3463 | -9/Exiles | Met EX-HEX 3517 | -9/Exiles | Met EX-BIN 3537 | -9/Exiles | Aligned with FarCom system 3539 | -9/Exiles | Given EX-Vault access code 3582 | -9/Exiles | Opened EX-Vault 3595 | -9/Exiles | Found Deploy-a-Sentry 3598 | -9/Exiles | Found Deploy-a-Sentry 3601 | -9/Exiles | Found Deploy-a-Sentry 3642 | -9/Exiles | Warned to stay clear of 0b10 Research branches 3700 | -9/Exiles | Met EX-DEC 3742 | -9/Exiles | Learned location of Zion (-7) 3907 | -9/Exiles | Discovered new exit (range 14) 3954 | -9/Exiles | Left Exiles lab with Deploy-a-Sentry 3954 | -9/Exiles | Entered Mines 4099 | -8/Mines | Build established: Hauler-Mutant 4111 | -8/Mines | Discovered new exit (range 15) 4157 | -8/Mines | Entered Materials 4157 | -8/Materials | Evolved 2 slots: Weapon x2 4179 | -8/Materials | Garrison activated, responded to threat 4265 | -8/Materials | Destroyed 9 combat bots 4467 | -8/Materials | Build established: Hauler-Skirmisher 5068 | -8/Materials | Discovered new exit (range 14) 5193 | -8/Materials | Identified exit to Storage 5196 | -8/Materials | Entered Storage 5389 | -8/Storage | Garrison activated, responded to threat 5655 | -8/Storage | Destroyed 12 combat bots 5816 | -8/Storage | Discovered new exit (range 15) 6388 | -8/Storage | Found Prototype Launcher 6388 | -8/Storage | Identified Gui. Missile Launcher 6396 | -8/Storage | First assault squad dispatched 6831 | -8/Storage | Core integrity fell below 50% 6865 | -8/Storage | Destroyed 8 combat bots 6949 | -8/Storage | Identified exit to Garrison 6949 | -8/Storage | Entered Garrison 7036 | -8/Garrison | Triggered checkpoint 7038 | -8/Garrison | Triggered checkpoint 7063 | -8/Garrison | Destroyed 7 combat bots 7160 | -8/Garrison | Discovered new exit (range 9) 7238 | -8/Garrison | Triggered checkpoint 7267 | -8/Garrison | Build established: Scavenger-Mutant 7329 | -8/Garrison | Triggered checkpoint 7356 | -8/Garrison | Discovered new exit (range 10) 7381 | -8/Garrison | Installed Relay Interface Framework 7542 | -8/Garrison | Triggered checkpoint 7587 | -8/Garrison | Garrison Relay disabled 7958 | -8/Garrison | Build established: Hauler-Mutant 8130 | -8/Garrison | Triggered checkpoint 8309 | -8/Garrison | Entered Factory 8309 | -7/Factory | Evolved 2 slots: Utility x2 8495 | -7/Factory | Garrison activated, responded to threat 8536 | -7/Factory | Lost 3 parts (1p1n1w) 8591 | -7/Factory | Identified exit to Garrison 8591 | -7/Factory | Entered Garrison 8695 | -7/Garrison | Triggered checkpoint 8739 | -7/Garrison | Destroyed 14 combat bots 8896 | -7/Garrison | Triggered checkpoint 8938 | -7/Garrison | Triggered checkpoint 8977 | -7/Garrison | Discovered new exit (range 10) 9089 | -7/Garrison | Discovered new exit (range 15) 9170 | -7/Garrison | Build established: Scavenger-Mutant 9338 | -7/Garrison | Discovered new exit (range 13) 9371 | -7/Garrison | Expanded RIF knowledge: Robot Detection 9427 | -7/Garrison | Triggered checkpoint 9551 | -7/Garrison | Build established: Mutant 9667 | -7/Garrison | Spotted B-75 Beast 9667 | -7/Garrison | Spotted B-75 Beast 10434 | -7/Garrison | Build established: Hauler-Skirmisher 10636 | -7/Garrison | Phase Generator disabled 10758 | -7/Garrison | Entered Factory 10925 | -7/Factory | Build established: Hauler-Mutant 11158 | -7/Factory | First assault squad dispatched 11201 | -7/Factory | Garrison activated, responded to threat 11280 | -7/Factory | Lost 6 parts (1p1u4w) 11378 | -7/Factory | Identified exit to Garrison 11378 | -7/Factory | Entered Garrison 11390 | -7/Garrison | Expanded RIF knowledge: Program Shield 11598 | -7/Garrison | Triggered checkpoint 11730 | -7/Garrison | Triggered checkpoint 12017 | -7/Garrison | Garrison Relay disabled 12080 | -7/Garrison | Triggered checkpoint 12294 | -7/Garrison | Build established: Mutant 12506 | -7/Garrison | Triggered checkpoint 12882 | -7/Garrison | Build established: Hauler-Mutant 13212 | -7/Garrison | Triggered checkpoint 13502 | -7/Garrison | Triggered checkpoint 13546 | -7/Garrison | Build established: Bothacker-Mutant 13682 | -7/Garrison | Triggered checkpoint 13739 | -7/Garrison | Discovered new exit (range 9) 14352 | -7/Garrison | Triggered checkpoint 14430 | -7/Garrison | Garrison Relay disabled 14478 | -7/Garrison | Phase Generator disabled 15546 | -7/Garrison | Crushed by falling debris 15710 | -7/Garrison | Entered Factory 15710 | -6/Factory | Evolved 2 slots: Utility x2 15805 | -6/Factory | Build established: Bothacker-Skirmisher 16060 | -6/Factory | First assault squad dispatched 16946 | -6/Factory | Crushed by falling debris 16990 | -6/Factory | Crushed by falling debris 16999 | -6/Factory | Crushed by falling debris 17002 | -6/Factory | Crushed by falling debris 17003 | -6/Factory | System corruption reached 10% 17033 | -6/Factory | Lost 4 parts (1u3w) 17153 | -6/Factory | Build established: Bothacker-Mutant 17231 | -6/Factory | Crushed by falling debris 17357 | -6/Factory | Discovered new exit (range 14) 17482 | -6/Factory | Sucked down chute 17482 | -6/Factory | Entered Waste 17500 | -6/Waste | Spotted C-40 Crusher 17511 | -6/Waste | Spotted C-40 Crusher 17558 | -6/Waste | Spotted C-40 Crusher 17593 | -6/Waste | Spotted C-40 Crusher 17751 | -6/Waste | Spotted C-40 Crusher 17803 | -6/Waste | Spotted C-40 Crusher 17945 | -6/Waste | Destroyed C-40 Crusher 18162 | -6/Waste | Destroyed C-40 Crusher 18174 | -6/Waste | Found Damper Plating 18183 | -6/Waste | Found Damper Plating 18573 | -6/Waste | Destroyed C-40 Crusher 18746 | -6/Waste | Destroyed C-40 Crusher 19110 | -6/Waste | Destroyed C-40 Crusher 19311 | -6/Waste | Destroyed C-40 Crusher 19458 | -6/Waste | Discovered new exit (range 12) 19610 | -6/Waste | Warlord forces began an assault 19921 | -6/Waste | Entered Factory 19921 | -6/Factory | Accompanied by 19 allies 19942 | -6/Factory | Build established: Hauler-Tank 20260 | -6/Factory | Fabricated Hcp. Storage Unit (x1) 20353 | -6/Factory | Build established: Hauler-Mutant 20503 | -6/Factory | Identified exit to Garrison 20520 | -6/Factory | Entered Garrison 20520 | -6/Garrison | Accompanied by 15 allies 20614 | -6/Garrison | Triggered checkpoint 20618 | -6/Garrison | Triggered checkpoint 20642 | -6/Garrison | Triggered checkpoint 20759 | -6/Garrison | Spotted B-75 Beast 20766 | -6/Garrison | Triggered checkpoint 20776 | -6/Garrison | Destroyed B-75 Beast 20806 | -6/Garrison | Core integrity fell below 50% 20845 | -6/Garrison | Discovered new exit (range 13) 21066 | -6/Garrison | Build established: Hauler-Skirmisher 21138 | -6/Garrison | Triggered checkpoint 21213 | -6/Garrison | Discovered new exit (range 10) 21405 | -6/Garrison | Discovered new exit (range 13) 21445 | -6/Garrison | Expanded RIF knowledge: Watcher Feeds 21652 | -6/Garrison | Triggered checkpoint 21693 | -6/Garrison | Garrison Relay disabled 22001 | -6/Garrison | Build established: Bothacker-Mutant 22382 | -6/Garrison | Triggered checkpoint 22504 | -6/Garrison | Garrison Relay disabled 22662 | -6/Garrison | Triggered checkpoint 22726 | -6/Garrison | Garrison Relay disabled 23031 | -6/Garrison | Build established: Botlord-Mutant 25271 | -6/Garrison | Garrison Relay disabled 25322 | -6/Garrison | Entered Factory 25322 | -6/Factory | Accompanied by 1 ally 25832 | -6/Factory | Identified exit to Garrison 25832 | -6/Factory | Entered Garrison 26121 | -6/Garrison | Triggered checkpoint 26139 | -6/Garrison | Build established: Scavenger-Mutant 26151 | -6/Garrison | Destroyed B-75 Beast 26196 | -6/Garrison | Triggered checkpoint 26454 | -6/Garrison | Triggered checkpoint 26522 | -6/Garrison | Build established: Scavenger-Tank 26665 | -6/Garrison | Discovered new exit (range 9) 26850 | -6/Garrison | Destroyed 8 combat bots 27200 | -6/Garrison | Discovered new exit (range 13) 27232 | -6/Garrison | Expanded RIF knowledge: Alert ID Control 27310 | -6/Garrison | Triggered checkpoint 27378 | -6/Garrison | Triggered checkpoint 27598 | -6/Garrison | Triggered checkpoint 28018 | -6/Garrison | Garrison Relay disabled 28259 | -6/Garrison | Garrison Relay disabled 28293 | -6/Garrison | Build established: Botlord-Mutant 28435 | -6/Garrison | Discovered new exit (range 9) 28667 | -6/Garrison | Triggered checkpoint 29530 | -6/Garrison | Entered Factory 29530 | -5/Factory | Evolved 2 slots: Propulsion x2 29763 | -5/Factory | Fabricated Hcp. Storage Unit (x1) 29855 | -5/Factory | Sucked down chute 29855 | -5/Factory | Entered Waste 29870 | -5/Waste | 1 allies followed down the chute 29870 | -5/Waste | EMP discharged 29878 | -5/Waste | Spotted C-40 Crusher 29896 | -5/Waste | Spotted C-40 Crusher 29924 | -5/Waste | Spotted C-40 Crusher 29942 | -5/Waste | Spotted C-40 Crusher 29945 | -5/Waste | Allies destroyed C-40 Crusher 29950 | -5/Waste | Spotted C-40 Crusher 29970 | -5/Waste | EMP discharged 30010 | -5/Waste | Spotted C-40 Crusher 30024 | -5/Waste | Allies destroyed C-40 Crusher 30070 | -5/Waste | EMP discharged 30112 | -5/Waste | Destroyed C-40 Crusher 30130 | -5/Waste | Destroyed C-40 Crusher 30158 | -5/Waste | Destroyed C-40 Crusher 30170 | -5/Waste | EMP discharged 30270 | -5/Waste | EMP discharged 30307 | -5/Waste | Discovered new exit (range 12) 30370 | -5/Waste | EMP discharged 30470 | -5/Waste | EMP discharged 30472 | -5/Waste | Build established: Bothacker-Mutant 30570 | -5/Waste | EMP discharged 30670 | -5/Waste | EMP discharged 30677 | -5/Waste | Destroyed C-40 Crusher 30699 | -5/Waste | Found Damper Plating 30770 | -5/Waste | EMP discharged 30870 | -5/Waste | EMP discharged 30883 | -5/Waste | Build established: Bothacker-Skirmisher 30970 | -5/Waste | EMP discharged 31067 | -5/Waste | Entered Factory 31324 | -5/Factory | Identified exit to Garrison 31335 | -5/Factory | Discovered new exit (range 13) 31347 | -5/Factory | Entered Garrison 31633 | -5/Garrison | Build established: Scavenger-Mutant 31658 | -5/Garrison | Triggered checkpoint 32102 | -5/Garrison | Triggered checkpoint 32102 | -5/Garrison | Triggered checkpoint 32126 | -5/Garrison | Spotted B-75 Beast 32163 | -5/Garrison | Destroyed B-75 Beast 32451 | -5/Garrison | Discovered new exit (range 15) 32633 | -5/Garrison | Discovered new exit (range 15) 32746 | -5/Garrison | Triggered checkpoint 32824 | -5/Garrison | Discovered new exit (range 15) 32860 | -5/Garrison | Expanded RIF knowledge: Structural Interface 32962 | -5/Garrison | Triggered checkpoint 33655 | -5/Garrison | Triggered checkpoint 34085 | -5/Garrison | Build established: Hauler-Mutant 34213 | -5/Garrison | Garrison Relay disabled 34445 | -5/Garrison | Phase Generator disabled 34717 | -5/Garrison | Garrison Relay disabled 34815 | -5/Garrison | Garrison Relay disabled 34885 | -5/Garrison | Entered Factory 34885 | -4/Factory | Evolved 2 slots: Power x1, Utility x1 35010 | -4/Factory | Build established: Botlord-Mutant 35135 | -4/Factory | First assault squad dispatched 35139 | -4/Factory | Discovered new exit (range 15) 35197 | -4/Factory | Sucked down chute 35197 | -4/Factory | Entered Waste 35212 | -4/Waste | EMP discharged 35238 | -4/Waste | Spotted C-40 Crusher 35267 | -4/Waste | Spotted C-40 Crusher 35270 | -4/Waste | Spotted C-40 Crusher 35312 | -4/Waste | EMP discharged 35325 | -4/Waste | Spotted C-40 Crusher 35333 | -4/Waste | Spotted C-40 Crusher 35412 | -4/Waste | EMP discharged 35451 | -4/Waste | Spotted C-40 Crusher 35497 | -4/Waste | Destroyed C-40 Crusher 35512 | -4/Waste | EMP discharged 35552 | -4/Waste | Discovered new exit (range 12) 35612 | -4/Waste | EMP discharged 35696 | -4/Waste | Destroyed C-40 Crusher 35705 | -4/Waste | Found Damper Plating 35708 | -4/Waste | Found Damper Plating 35712 | -4/Waste | EMP discharged 35757 | -4/Waste | Destroyed C-40 Crusher 35762 | -4/Waste | Found Damper Plating 35812 | -4/Waste | EMP discharged 35912 | -4/Waste | EMP discharged 36012 | -4/Waste | EMP discharged 36081 | -4/Waste | Destroyed C-40 Crusher 36112 | -4/Waste | EMP discharged 36145 | -4/Waste | Destroyed C-40 Crusher 36212 | -4/Waste | EMP discharged 36312 | -4/Waste | EMP discharged 36412 | -4/Waste | EMP discharged 36479 | -4/Waste | Destroyed C-40 Crusher 36512 | -4/Waste | EMP discharged 36592 | -4/Waste | Entered Factory 36874 | -4/Factory | Identified exit to Garrison 36874 | -4/Factory | Entered Garrison 36874 | -4/Garrison | Accompanied by 1 ally 37122 | -4/Garrison | Triggered checkpoint 37211 | -4/Garrison | Triggered checkpoint 37245 | -4/Garrison | Destroyed B-86 Titan 37562 | -4/Garrison | Build established: Scavenger-Tank 37637 | -4/Garrison | Triggered checkpoint 37750 | -4/Garrison | Triggered checkpoint 37754 | -4/Garrison | Discovered new exit (range 10) 37984 | -4/Garrison | Build established: Scavenger-Skirmisher 37998 | -4/Garrison | Triggered checkpoint 38084 | -4/Garrison | Triggered checkpoint 38174 | -4/Garrison | Discovered new exit (range 8) 38205 | -4/Garrison | Expanded RIF knowledge: Zone Cloak 38375 | -4/Garrison | Build established: Scavenger-Mutant 38393 | -4/Garrison | Discovered new exit (range 14) 38483 | -4/Garrison | Triggered checkpoint 38724 | -4/Garrison | Triggered checkpoint 38906 | -4/Garrison | Triggered checkpoint 39329 | -4/Garrison | Garrison Relay disabled 39377 | -4/Garrison | Garrison Relay disabled 39472 | -4/Garrison | Garrison Relay disabled 39588 | -4/Garrison | Garrison Relay disabled 40520 | -4/Garrison | Build established: Botlord-Mutant 40974 | -4/Garrison | Garrison Relay disabled 41141 | -4/Garrison | Entered Research 41141 | -3/Research | Accompanied by 7 allies 41141 | -3/Research | Evolved 2 slots: Utility x2 41229 | -3/Research | Garrison activated, responded to threat 41235 | -3/Research | Discovered new exit (range 3) 41295 | -3/Research | Identified exit to Garrison 41295 | -3/Research | Entered Garrison 41304 | -3/Garrison | Expanded RIF knowledge: Crosswire 41486 | -3/Garrison | Spotted B-86 Titan 41540 | -3/Garrison | Destroyed B-86 Titan 41694 | -3/Garrison | Triggered checkpoint 41804 | -3/Garrison | Triggered checkpoint 41871 | -3/Garrison | Triggered checkpoint 41917 | -3/Garrison | Triggered checkpoint 41970 | -3/Garrison | Triggered checkpoint 41995 | -3/Garrison | Destroyed 9 combat bots 41998 | -3/Garrison | Build established: Scavenger-Tank 42266 | -3/Garrison | Discovered new exit (range 4) 42438 | -3/Garrison | Triggered checkpoint 42670 | -3/Garrison | Discovered new exit (range 3) 42757 | -3/Garrison | Lost 4 parts (4u) 43238 | -3/Garrison | Found Antimissile System 43241 | -3/Garrison | Found Antimissile System 43384 | -3/Garrison | Triggered checkpoint 43428 | -3/Garrison | Triggered checkpoint 43630 | -3/Garrison | Triggered checkpoint 44852 | -3/Garrison | Triggered checkpoint 45105 | -3/Garrison | Garrison Relay disabled 45408 | -3/Garrison | Build established: Botlord-Mutant 45409 | -3/Garrison | Garrison Relay disabled 45579 | -3/Garrison | Phase Generator disabled 45664 | -3/Garrison | Entered Research 45664 | -2/Research | Accompanied by 3 allies 45664 | -2/Research | Evolved 2 slots: Propulsion x2 45914 | -2/Research | First assault squad dispatched 46135 | -2/Research | Discovered new exit (range 14) 46328 | -2/Research | Garrison activated, responded to threat 46436 | -2/Research | Lost 3 parts (1p1n1w) 46512 | -2/Research | Lost 4 parts (2n2w) 46611 | -2/Research | Identified exit to Garrison 46613 | -2/Research | Build established: Botlord-Skirmisher 46620 | -2/Research | Entered Garrison 46738 | -2/Garrison | Spotted B-90 Cyclops 46738 | -2/Garrison | Spotted B-90 Cyclops 46892 | -2/Garrison | Triggered checkpoint 46950 | -2/Garrison | Build established: Scavenger-Tank 47308 | -2/Garrison | Spotted B-90 Cyclops 47316 | -2/Garrison | Triggered checkpoint 47337 | -2/Garrison | Destroyed B-90 Cyclops 47579 | -2/Garrison | Discovered new exit (range 3) 47613 | -2/Garrison | Build established: Scavenger-Mutant 47658 | -2/Garrison | Triggered checkpoint 47658 | -2/Garrison | Triggered checkpoint 47752 | -2/Garrison | Discovered new exit (range 12) 47781 | -2/Garrison | Expanded RIF knowledge: Autooverride 47955 | -2/Garrison | Build established: Scavenger-Tank 48229 | -2/Garrison | Garrison Relay disabled 48248 | -2/Garrison | Garrison Relay disabled 48629 | -2/Garrison | Build established: Botlord-Mutant 48713 | -2/Garrison | Phase Generator disabled 48891 | -2/Garrison | Entered Access 48891 | -1/Access | Evolved 2 slots: Utility x2 49740 | -1/Access | Discovered new exit (range 5) 50269 | -1/Access | Discovered new exit (range 7) 50281 | -1/Access | Entered Command 50281 | -1/Command | Accompanied by 1 ally 50409 | -1/Command | Spotted Combat Programmer 50410 | -1/Command | Spotted Combat Programmer 50425 | -1/Command | Spotted M Guard 50426 | -1/Command | Spotted M Guard 50430 | -1/Command | Destroyed Combat Programmer 50459 | -1/Command | Destroyed Combat Programmer 50483 | -1/Command | Destroyed M Guard 50516 | -1/Command | Build established: Botlord-Gunner 50520 | -1/Command | Lost 4 parts (1p1n1u1w) 50523 | -1/Command | Destroyed M Guard 50523 | -1/Command | All MAIN.C guards destroyed 51147 | -1/Command | Build established: Botlord-Tank 51384 | -1/Command | Met MAIN.C 51391 | -1/Command | DAS Turret deployed 51394 | -1/Command | DAS Turret deployed 51396 | -1/Command | DAS Turret deployed 51400 | -1/Command | 0b10 Conduit disabled 51406 | -1/Command | Destroyed MAIN.C Shell 51409 | -1/Command | MAIN.C activated Command garrisons 51507 | -1/Command | Destroyed MAIN.C 51511 | -1/Command | Released all parts (10) 51538 | -1/Command | Lost 21 parts (1p4n9u7w) 51542 | -1/Command | Phase Generator disabled 51679 | -1/Command | Core integrity fell below 50% 51694 | -1/Command | System corruption reached 10% 51696 | -1/Command | Found Prototype Launcher 51696 | -1/Command | Identified Point Singularity Launcher 51750 | -1/Command | Build established: Mutant 52368 | -1/Command | Build established: Scavenger-Mutant 52370 | -1/Command | Found Prototype Launcher 52371 | -1/Command | Identified Enh. Gamma Bomb Array 52827 | -1/Command | Build established: Scavenger-Gunner 53039 | -1/Command | Discovered new exit (range 11) 53356 | -1/Command | Identified exit to Surface 53396 | -1/Command | Found Prototype Ballistic Gun 53396 | -1/Command | Identified Multirail 53408 | -1/Command | Found Multirail 55631 | -1/Command | Build established: Scavenger-Mutant 55658 | -1/Command | Found Prototype Processor 55658 | -1/Command | Identified Exp. Targeting Computer 55667 | -1/Command | Found Prototype Processor 55667 | -1/Command | Identified Exp. Target Analyzer 55966 | -1/Command | Build established: Scavenger-Tank 56307 | -1/Command | Found Unknown Device 56307 | -1/Command | Identified Launcher Loader 56489 | -1/Command | Found Prototype Processor 56489 | -1/Command | Identified Exp. Core Analyzer 56500 | -1/Command | Discovered exit to Surface (range 8) 59529 | -1/Command | Build established: Scavenger-Mutant 60061 | -1/Command | Found Prototype Device 60061 | -1/Command | Identified AEGIS Remote Shield 60067 | -1/Command | Found Prototype Reactor 60067 | -1/Command | Identified Vortex Chain Reactor 60071 | -1/Command | Found Prototype Device 60071 | -1/Command | Identified Femtoactuators 60075 | -1/Command | Found Prototype Device 60075 | -1/Command | Identified Exp. Focal Shield 60078 | -1/Command | Found Prototype Device 60078 | -1/Command | Identified Exp. Force Field 60085 | -1/Command | Found Prototype Device 60085 | -1/Command | Identified Exp. Weapon Cycler 60354 | -1/Command | Build established: Scavenger-Tank 61056 | -1/Command | Build established: Scavenger-Mutant 64143 | *** | Establishing 0b11! Last Messages --------------- 63753_ The unstable cave ceiling collapses. 63753_ Acquired 6 matter. 63755_ The unstable cave ceiling collapses. 63762_ Acquired 34 matter. 63765_ The unstable cave ceiling collapses. 63776_ Acquired 50 matter. 63781_ The unstable cave ceiling collapses. 63786_ Acquired 49 matter. 63823_ The unstable cave ceiling collapses. 63834_ Acquired 53 matter. 63836_ The unstable cave ceiling collapses. 63837_ Acquired 72 matter. 63839_ The unstable cave ceiling collapses. 63893_ Dropped Hvy. Armor Plating. 63897_ The unstable cave ceiling collapses. 63916_ Acquired Hvy. Armor Plating. 63938_ The unstable cave ceiling collapses. 63942_ Acquired 10 matter. [Achievement: Commander 0b11] [Achievement: Victory By Combat] Map ----- +----------------------------------------------------+ | ??????????????????????????????#######????????????? | | ???????###??????????????????### ####?????????? | | ???#???# ###?????????######?# #?????????? | | #### ### ########?## ### #??????????? | | # ### ## #??????????? | | ## ## ## #??????????? | | # ]] + + #??????????? | | ]] ## ### !! #??????????? | | ### #?#] #??????????? | | # #?### ##?# #??????????? | | ] # #???####??#######+###??????????? | | + #?????????????# #??????????? | | ###+## #?????????????# #??????????? | | ### ## #?????????????# #??????????? | | ## ## #?????????????# ! #??????????? | | ## ## #?????????????# [ #??????????? | | # #######+####+#####?????????## ##??????????? | | + ## #??????????# #???????????? | | # ###### ## ] #??????????# #???????????? | | ########## ## #??????????# #???????????? | | ##?# # ## ] #??????????# #???????????? | | ???# # ## [ #??????????# #????????#### | | #### # ## #??????????# #????????# | | + # ## #######????# #????????# | | #### # ## ## #????# #????????# | | ##?# = # ## ## @ #????# ######???# | | #######+## ## ## #????# *# ! #???# | | ## * = #### #????# = # #???# | | ## ! ! #??# #????# =# #???# | | ## =[*#??# #????# # ! #???# | | [ ## ] = #??# #????# # #???# | | ####"""#+#### ###### #[ #???# | | # = =#???# | | " * #???#!= | | ########+####### ! # #???#! * | | ## ##= ######???# = | | ] ## # * ######### ! | | # ########^ * ## # =! * *! * =[* | | = #??# ^= ## # = = [ =! | | #??# ## # ] [!*! | | #??# * ## # ######### !! | | #??# * ## ## ####?????# [ | | #??# = ## ## ###??????# | | #??## ## ## =#????????#### | | ##### ###+###+######## = #???????????? | | # #?# ! #?????# #???????????? | | # #?# ##????# #???????????? | | # #?# " ##???# #####???????? | | = # "## ### #???# # #???????? | | # # # #???# # #???????? | +----------------------------------------------------+ Best States ------------- Heat Dissipation 90 Coolant Potential 100 Energy Generation 55 Energy Capacity 1200 Matter Stores 361 Matter Capacity 550 Sight Range 20 Robot Scan Range 16 Terrain Scan Density 10 EM Shielding 4 Corruption Prevention 20 Armor Coverage 3600 Resistance: KI 30 Resistance: TH 30 Resistance: EX 50 Resistance: EM 90 Core Shielding 30 Propulsion Shielding 66 Utility Shielding 66 Weapon Shielding 66 Point Defense Rating 480 Weapon Cycling 30 Phase Shifting 15 Evasion (%) 55 Targeting Accuracy 32 Target Analysis 12 Core Analysis 15 Recoil Reduction 12 Matter Filtering 50 Energy Filtering 50 Offensive Hacking 10 Relay Coupler Types 97 Relay Coupler Value 5 Item Schematics ----------------- Hcp. Storage Unit | -8/Materials | Scanalyzed Remote Datajack | -7/Factory | Hacked Remote Force Field | -6/Factory | Scanalyzed Hvy. Treads | -6/Factory | Scanalyzed Robot Schematics ------------------ None Fabricated ------------ Hcp. Storage Unit | x1 | -6/Factory Hcp. Storage Unit | x1 | -5/Factory Alien Tech Used ----------------- None Achievements -------------- Commander 0b11 No Explosion For You Ooh, Shiny! Ultimate Loadout Victory By Combat void main() Challenges ------------ None Game ------ Seed MetafiberChainDevice Manual? 0 Play Time 08:37:30 Cumulative 143.8 hours Start 2021.12.14 @ 11:34:51 End 2021.12.15 @ 15:15:32 Sessions 7 Manual Loads 0 Difficulty Rogue Special Mode None Game No. 60 Rogue 60 Adventurer 0 Explorer 0 Win Type 1 Total 4 Types 2/1/0/0/1/0/0/0/0 Lore% 46 Gallery% 67 Achievement% 58 Wizard Run 0 Options --------- ASCII 0 Keyboard 0 Movement Mouse Keybinds 0 Fullscreen 0 Font 28/SmallcapsGlow Map View 72x54 Tactical HUD 1 Map Filters NONE Filters NONE Steam 1 RUN: 027c367a-3368-48b6-ab65-293a8fe23593